Workbook

Sheet Special Rates 2024-25
E4: 2024/25 Calculation of Special School Funding Rates
B8: DfE | E8: =IFERROR(VLOOKUP(DFENUM,DATA!B5:C28,2,0),"") -> 
B11: Section 1 - Commissioned Place numbers
B13: Academic Year | C13: Pre-16 | D13: Post-16 | E13: Weekday Residential | F13: Weekend Residential | H13: High Needs Place numbers as agreed annually with the Local Authority's SEN team
B15: 2023/24 | C15: =IFERROR(VLOOKUP(DFENUM,DATA!B5:K28,3,0),0) -> 0 | D15: =IFERROR(VLOOKUP(DFENUM,DATA!B5:K28,5,0),0) -> 0 | E15: =IFERROR(VLOOKUP(DFENUM,DATA!B5:K28,7,0),0) -> 0 | F15: =IFERROR(VLOOKUP(DFENUM,DATA!B5:K28,9,0),0) -> 0 | H15: Place numbers 2023-24 agreed November 2022
B17: 2024/25 | C17: =IFERROR(VLOOKUP(DFENUM,DATA!B5:K28,4,0),0) -> 0 | D17: =IFERROR(VLOOKUP(DFENUM,DATA!B5:K28,6,0),0) -> 0 | E17: =IFERROR(VLOOKUP(DFENUM,DATA!B5:K28,8,0),0) -> 0 | F17: =IFERROR(VLOOKUP(DFENUM,DATA!B5:K28,10,0),0) -> 0 | H17: Place numbers 2024-25 agreed November 2023
B19: Movement | C19: =C17-C15 -> 0 | D19: =D17-D15 -> 0 | E19: =E17-E15 -> 0 | F19: =F17-F15 -> 0
L23: Day Pupil | P23: Weekday | S23: Weekend
B24: Section 2 - Calculation of funding rate for April 2024 to March 2025
J25: MLD & SLCN | K25: SEMH | L25: SLD | M25: PD & PMLD | N25: ASD | P25: PD & PMLD | Q25: ASD | S25: PD & PMLD
A27: (A) | B27: April 2024 to August 2024 (Formula only excluding MFG)- | J27: =IFERROR(VLOOKUP(DFENUM,DATA!B5:AA28,11,0),0) -> 0 | K27: =IFERROR(VLOOKUP(DFENUM,DATA!B5:AA28,17,0),0) -> 0 | L27: =IFERROR(VLOOKUP(DFENUM,DATA!B5:AA28,20,0),0) -> 0 | M27: =IFERROR(VLOOKUP(DFENUM,DATA!B5:AA28,23,0),0) -> 0 | N27: =IFERROR(VLOOKUP(DFENUM,DATA!B5:AA28,14,0),0) -> 0 | P27: =IFERROR(VLOOKUP(DFENUM,DATA!B5:BX28,50,0),0) -> 0 | Q27: =IFERROR(VLOOKUP(DFENUM,DATA!B5:BX28,47,0),0) -> 0 | S27: =IFERROR(VLOOKUP(DFENUM,DATA!B5:BX28,53,0),0) -> 0
B28: Based on Academic Year 2023 to 2024. Data taken from 2023-24 Funding Rates Calculation.
A30: (B) | B30: September 2024 to March 2025 (Formula only excluding MFG) | J30: =IFERROR(VLOOKUP(DFENUM,DATA!B5:AA28,12,0),0) -> 0 | K30: =IFERROR(VLOOKUP(DFENUM,DATA!B5:AA28,18,0),0) -> 0 | L30: =IFERROR(VLOOKUP(DFENUM,DATA!B5:AA28,21,0),0) -> 0 | M30: =IFERROR(VLOOKUP(DFENUM,DATA!B5:AA28,24,0),0) -> 0 | N30: =IFERROR(VLOOKUP(DFENUM,DATA!B5:AA28,15,0),0) -> 0 | P30: =IFERROR(VLOOKUP(DFENUM,DATA!B5:BX28,52,0),0) -> 0 | Q30: =IFERROR(VLOOKUP(DFENUM,DATA!B5:BX28,49,0),0) -> 0 | S30: =IFERROR(VLOOKUP(DFENUM,DATA!B5:BX28,55,0),0) -> 0
B31: Based on Academic Year 2024 to 2025. See section 3 for calculation.
A33: (C) | B33: April 2024 to March 2025 | I33: = (A) X 5/12 | J33: =(J27*5/12)+(J30*7/12) -> 0 | K33: =(K27*5/12)+(K30*7/12) -> 0 | L33: =(L27*5/12)+(L30*7/12) -> 0 | M33: =(M27*5/12)+(M30*7/12) -> 0 | N33: =(N27*5/12)+(N30*7/12) -> 0 | P33: =IF(DFENUM=7073,P27,(P27*5/12)+(P30*7/12)) -> 0 | Q33: =IF(DFENUM=7073,Q27,(Q27*5/12)+(Q30*7/12)) -> 0 | S33: =IF(DFENUM=7073,S27,(S27*5/12)+(S30*7/12)) -> 0
B34: Based on Academic Year 2023 to 2024 (April 2024 to August 2024) 5/12's + | I34: +
B35: Academic Year 2024 to 2025 (September 2024 to March 2025) 7/12's | I35: (B) X 7/12
A37: (D) | B37: Final funding rate for financial Year 2023 to 2024 | J37: =IFERROR(VLOOKUP(DFENUM,DATA!$B:$CG,13,0),0) -> 0 | K37: =IFERROR(VLOOKUP(DFENUM,DATA!$B:$CG,19,0),0) -> 0 | L37: =IFERROR(VLOOKUP(DFENUM,DATA!$B:$CG,22,0),0) -> 0 | M37: =IFERROR(VLOOKUP(DFENUM,DATA!$B:$CG,25,0),0) -> 0 | N37: =IFERROR(VLOOKUP(DFENUM,DATA!$B:$CG,16,0),0) -> 0 | P37: =IFERROR(VLOOKUP(DFENUM,DATA!$B:$CG,51,0),0) -> 0 | Q37: =IFERROR(VLOOKUP(DFENUM,DATA!$B:$CG,48,0),0) -> 0 | S37: =IFERROR(VLOOKUP(DFENUM,DATA!$B:$CG,54,0),0) -> 0
A38: (E) | B38: MFG rate (D) X 100.5% | J38: =mldlastyear*1.005 -> 0 | K38: =besdlastyear*1.005 -> 0 | L38: =sldlastyear*1.005 -> 0 | M38: =pdlastyear*1.005 -> 0 | N38: =asdlastyear*1.005 -> 0 | P38: =pdweekdaylastyear*1.005 -> 0 | Q38: =asdweekdaylastyear*1.005 -> 0 | S38: =pdweekendlastyear*1.005 -> 0
J40: MLD & SLCN | K40: SEMH | L40: SLD | M40: PD & PMLD | N40: ASD | P40: PD & PMLD | Q40: ASD | S40: PD & PMLD
A41: (F) | B41: Final Rate (Greater of Formula (C) or MFG E)) | G41: Formula (C) | J41: =J33 -> 0 | K41: =K33 -> 0 | L41: =L33 -> 0 | M41: =M33 -> 0 | N41: =N33 -> 0 | P41: =P33 -> 0 | Q41: =Q33 -> 0 | S41: =S33 -> 0
G42: MFG funding rate (E) | J42: =J38 -> 0 | K42: =K38 -> 0 | L42: =L38 -> 0 | M42: =M38 -> 0 | N42: =N38 -> 0 | P42: =P38 -> 0 | Q42: =Q38 -> 0 | S42: =S38 -> 0
G43: Amount of MFG if (E) is greater than (C) | J43: =IF(J41>J42,0,J42-J41) -> 0 | K43: =IF(K41>K42,0,K42-K41) -> 0 | L43: 0 | M43: 0 | N43: 0 | P43: =IF(P41>P42,0,P42-P41) -> 0 | Q43: 0 | S43: =IF(S41>S42,0,S42-S41) -> 0
G44: Final Rate formula plus MFG | J44: =SUM(J41,J43) -> 0 | K44: =SUM(K41,K43) -> 0 | L44: =SUM(L41,L43) -> 0 | M44: =SUM(M41,M43) -> 0 | N44: =SUM(N41,N43) -> 0 | P44: =SUM(P41,P43) -> 0 | Q44: =SUM(Q41,Q43) -> 0 | S44: =SUM(S41,S43) -> 0
A45: (G) | B45: Place Plus Breakdown
G46: Element 1 & 2 | J46: 10000 | K46: 10000 | L46: 10000 | M46: 10000 | N46: 10000 | P46: =IF($P$44=0,0,10000) -> 0 | Q46: =IF($Q$44=0,0,10000) -> 0 | S46: =IF($S$44=0,0,10000) -> 0
G47: Element 3 | J47: =J44-J46 -> -10000 | K47: =K44-K46 -> -10000 | L47: -10000 | M47: -10000 | N47: -10000 | P47: =P44-P46 -> 0 | Q47: 0 | S47: =S44-S46 -> 0
G48: Total rate | J48: =SUM(J46:J47) -> 0 | K48: =SUM(K46:K47) -> 0 | L48: =SUM(L46:L47) -> 0 | M48: =SUM(M46:M47) -> 0 | N48: =SUM(N46:N47) -> 0 | P48: =SUM(P46:P47) -> 0 | Q48: =SUM(Q46:Q47) -> 0 | S48: =SUM(S46:S47) -> 0
B49: Section 3 - Pupil Led Elements
J50: MLD & SLCN | K50: SEMH | L50: SLD | M50: PD & PMLD | N50: ASD | P50: PD & PMLD | Q50: ASD | S50: PD & PMLD
B51: Day Rate | J51: 10177.02732 | K51: 16852.07156 | L51: 14611.72246 | M51: 22002.11431 | N51: 16852.07156 | P51: =IF($P$30=0,0,M51) -> 0 | Q51: =IF($Q$30=0,0,N51) -> 0 | S51: =IF($S$33=0,0,M51) -> 0
B52: Adjusted Rate due to School type (see note) | J52: 0 | K52: 0 | L52: 0 | M52: 0 | N52: =IFERROR(VLOOKUP(DFENUM,DATA!B5:BE28,27,0),0)-N51 -> -16852.07156 | P52: 0 | Q52: =IF($Q$30=0,0,N52) -> 0 | S52: 0
B53: Residential Weekday rate | J53: 0 | K53: 0 | L53: 0 | M53: 0 | N53: 0 | P53: =IF($P$30=0,0,IFERROR(VLOOKUP(DFENUM,DATA!B5:BX26,56,0),0)) -> 0 | Q53: =IF($Q$30=0,0,IFERROR(VLOOKUP(DFENUM,DATA!B5:BX26,56,0),0)) -> 0 | S53: =IF($S$33=0,0,IFERROR(VLOOKUP(DFENUM,DATA!B5:BX26,56,0),0)) -> 0
B54: Residential Weekend rate | J54: 0 | K54: 0 | L54: 0 | M54: 0 | N54: 0 | P54: 0 | Q54: 0 | S54: =IF($S$33=0,0,IFERROR(VLOOKUP(DFENUM,DATA!B5:BX26,57,0),0)) -> 0
B55: Subsidy on day places (catering) | J55: 121.5349276 | K55: =$J55 -> 121.5349276 | L55: =$J55 -> 121.5349276 | M55: 121.5349276 | N55: 121.5349276 | P55: =IF($P$30=0,0,M55) -> 0 | Q55: =IF($Q$30=0,0,N55) -> 0 | S55: =IF($S$33=0,0,P55) -> 0
B56: Lunch Grant | J56: 12.61211513 | K56: =$J56 -> 12.61211513 | L56: 12.61211513 | M56: 12.61211513 | N56: 12.61211513 | P56: =IF($P$30=0,0,M56) -> 0 | Q56: =IF($Q$30=0,0,N56) -> 0 | S56: =IF($S$33=0,0,P56) -> 0
B57: Specialist Schools Funding | J57: 104.6586675 | K57: 104.6586675 | L57: 104.6586675 | M57: 104.6586675 | N57: 104.6586675 | P57: =IF($P$30=0,0,M57) -> 0 | Q57: =IF($Q$30=0,0,N57) -> 0 | S57: 0
B58: Further Delegation | J58: 49.93837305 | K58: 49.93837305 | L58: 49.93837305 | M58: 49.93837305 | N58: 49.93837305 | P58: =IF($P$30=0,0,M58) -> 0 | Q58: =IF($Q$30=0,0,N58) -> 0 | S58: 0
B59: Residential Weekday Places Catering | J59: 0 | K59: 0 | L59: 0 | M59: 0 | N59: 0 | P59: 0 | Q59: 0 | S59: 0
B60: Residential Weekend Places Catering | J60: 0 | K60: 0 | L60: 0 | M60: 0 | N60: 0 | P60: 0 | Q60: 0 | S60: 0
B61: London Fringe Day Pupil | J61: =IFERROR(VLOOKUP(DFENUM,DATA!B5:BE28,29,0),0) -> 0 | K61: =IFERROR(VLOOKUP(DFENUM,DATA!B5:BE28,30,0),0) -> 0 | L61: =IFERROR(VLOOKUP(DFENUM,DATA!B5:BE28,31,0),0) -> 0 | M61: =IFERROR(VLOOKUP(DFENUM,DATA!B5:BE28,32,0),0) -> 0 | N61: =IFERROR(VLOOKUP(DFENUM,DATA!B5:BE28,33,0),0) -> 0 | P61: 0 | Q61: 0 | S61: 0
B62: London Fringe Weekday Residential Pupil | J62: 0 | K62: 0 | L62: 0 | M62: 0 | N62: 0 | P62: =IF($P$30=0,0,IFERROR(VLOOKUP(DFENUM,DATA!B5:BX28,58,0),0)) -> 0 | Q62: =IF($Q$30=0,0,IFERROR(VLOOKUP(DFENUM,DATA!B5:BX28,58,0),0)) -> 0 | S62: 0
B63: London Fringe Weekend Residential Pupil | J63: 0 | K63: 0 | L63: 0 | M63: 0 | N63: 0 | P63: 0 | Q63: 0 | S63: =IF($S$33=0,0,IFERROR(VLOOKUP(DFENUM,DATA!B5:BX28,59,0),0)) -> 0
B65: Rate for Pupil Led Elements | J65: =SUM(J51:J64) -> 10465.7714 | K65: =SUM(K51:K64) -> 17140.81564 | L65: =SUM(L51:L64) -> 14900.46654 | M65: =SUM(M51:M64) -> 22290.85839 | N65: =SUM(N51:N64) -> 288.7440833 | P65: =SUM(P51:P64) -> 0 | Q65: =SUM(Q51:Q64) -> 0 | S65: =SUM(S51:S64) -> 0
B67: Section 4 - School Led Elements
L68: Need Type
F69: Units | G69: Rate | H69: Total | I69: Places | J69: MLD & SLCN | K69: SEMH | L69: SLD | M69: PD & PMLD | N69: ASD | P69: PD & PMLD | Q69: ASD | S69: PD & PMLD
B70: Lump Sum Day | F70: =IF(DFENUM>0,1,0) -> 0 | G70: 397087.8586 | H70: =F70*G70 -> 0 | I70: =$C$17+$D$17 -> 0 | J70: =IF(I70=0,0,H70/I70) -> 0 | K70: =$J70 -> 0 | L70: =$J70 -> 0 | M70: 0 | N70: 0 | P70: =IF($P$30=0,0,M70) -> 0 | Q70: =IF($Q$30=0,0,N70) -> 0 | S70: =IF($S$33=0,0,M70) -> 0
B71: Lump Sum Catering Day | F71: =IF(DFENUM>0,1,0) -> 0 | G71: 2293.111841 | H71: =F71*G71 -> 0 | I71: =$C$17+$D$17 -> 0 | J71: =IF(I71=0,0,H71/I71) -> 0 | K71: =$J71 -> 0 | L71: 0 | M71: 0 | N71: 0 | P71: 0 | Q71: =IF($Q$30=0,0,N71) -> 0 | S71: =IF($S$33=0,0,M71) -> 0
B72: Specialist Schools Funding- Lump Sum | F72: =IF(DFENUM>0,1,0) -> 0 | G72: 13549.66346 | H72: 0 | I72: 0 | J72: 0 | K72: 0 | L72: 0 | M72: 0 | N72: 0 | P72: 0 | Q72: =IF($Q$30=0,0,N72) -> 0 | S72: 0
B73: Free Mid-day Meals | F73: =IFERROR(VLOOKUP(DFENUM,DATA!$B$5:$BE$28,43,0),0)*I73 -> 0 | G73: 475.8207071 | H73: 0 | I73: 0 | J73: 0 | K73: 0 | L73: 0 | M73: 0 | N73: 0 | P73: 0 | Q73: =IF($Q$30=0,0,N73) -> 0 | S73: 0
B74: Gross Day Floor Area (m2) | F74: =IFERROR(VLOOKUP(DFENUM,DATA!$B$5:$BE$28,37,0),0) -> 0 | G74: 34.39667507 | H74: =F74*G74 -> 0 | I74: 0 | J74: 0 | K74: 0 | L74: 0 | M74: 0 | N74: 0 | P74: 0 | Q74: =IF($Q$30=0,0,N74) -> 0 | S74: 0
B75: Grounds Site Area (hectares) | F75: =IFERROR(VLOOKUP(DFENUM,DATA!$B$5:$BE$28,40,0),0) -> 0 | G75: 1206.176829 | H75: 0 | I75: 0 | J75: 0 | K75: 0 | L75: 0 | M75: 0 | N75: 0 | P75: 0 | Q75: 0 | S75: 0
B76: Rentals | F76: =IF(IFERROR(VLOOKUP(DFENUM,DATA!$B$5:$BE$28,41,0),0)>0,1,0) -> 0 | G76: =IFERROR(VLOOKUP(DFENUM,DATA!$B$5:$BE$28,41,0),0) -> 0 | H76: 0 | I76: 0 | J76: 0 | K76: 0 | L76: 0 | M76: 0 | N76: 0 | P76: 0 | Q76: 0 | S76: 0
B77: Hydrotherapy Pool | F77: =IFERROR(VLOOKUP(DFENUM,DATA!$B$5:$BE$28,42,0),0) -> 0 | G77: 5732.779603 | H77: 0 | I77: 0 | J77: 0 | K77: 0 | L77: 0 | M77: 0 | N77: 0 | P77: 0 | Q77: 0 | S77: 0
B78: Split site- Band 1 | F78: =IFERROR(VLOOKUP(DFENUM,DATA!$B$5:$BE$28,45,0),0) -> 0 | G78: 5019.621821 | H78: 0 | I78: 0 | J78: 0 | K78: 0 | L78: 0 | M78: 0 | N78: 0 | P78: 0 | Q78: 0 | S78: 0
B79: Split site - Band 2 | F79: =IFERROR(VLOOKUP(DFENUM,DATA!$B$5:$BE$28,46,0),0) -> 0 | G79: 44058.70436 | H79: 0 | I79: 0 | J79: 0 | K79: 0 | L79: 0 | M79: 0 | N79: 0 | P79: 0 | Q79: 0 | S79: 0
B80: Residential Floor Area Weekday (m2) | F80: =IFERROR(VLOOKUP(DFENUM,DATA!$B$5:$BE$28,38,0),0) -> 0 | G80: 57.32727147 | H80: 0 | I80: =E17 -> 0 | J80: 0 | K80: 0 | L80: 0 | M80: 0 | N80: 0 | P80: =IF($P$30=0,0,((F80*G80)/I80)) -> 0 | Q80: =IF($Q$30=0,0,((F80*G80)/I80)) -> 0 | S80: =IF($S$33=0,0,((F80*G80)/I80)) -> 0
B81: Residential Floor Area Weekend (m2) | F81: =IFERROR(VLOOKUP(DFENUM,DATA!$B$5:$BE$28,39,0),0) -> 0 | G81: 74.52602955 | H81: 0 | I81: =E17 -> 0 | J81: 0 | K81: 0 | L81: 0 | M81: 0 | N81: 0 | P81: =IF($P$30=0,0,((F81*G81)/I81)) -> 0 | Q81: =IF($Q$30=0,0,((F81*G81)/I81)) -> 0 | S81: =IF($S$33=0,0,((F81*G81)/I81)) -> 0
B82: Lump Sum Residential | F82: =IF(SUM(P33:S33)>0,1,0) -> 0 | G82: 187375.9013 | H82: 0 | I82: =E17 -> 0 | J82: 0 | K82: 0 | L82: 0 | M82: 0 | N82: 0 | P82: =IF($P$30=0,0,((F82*G82)/I82)) -> 0 | Q82: =IF($Q$30=0,0,((F82*G82)/I82)) -> 0 | S82: =IF($S$33=0,0,((F82*G82)/I82)) -> 0
B83: London Fringe Day Pupils | F83: =IFERROR(VLOOKUP(DFENUM,DATA!$B$5:$BE$28,44,0),0) -> 0 | G83: 4419.113157 | H83: 0 | I83: =$C$17+$D$17 -> 0 | J83: 0 | K83: 0 | L83: 0 | M83: 0 | N83: 0 | P83: 0 | Q83: 0 | S83: 0
B84: London Fringe Residential Pupils | F84: 0 | G84: 2768.072631 | H84: 0 | I84: =E17 -> 0 | J84: 0 | K84: 0 | L84: 0 | M84: 0 | N84: 0 | P84: =IF($P$30=0,0,IFERROR(VLOOKUP(DFENUM,DATA!B5:BX28,60,0),0)) -> 0 | Q84: =IF($Q$30=0,0,IFERROR(VLOOKUP(DFENUM,DATA!B5:BX28,60,0),0)) -> 0 | S84: =IF($S$33=0,0,IFERROR(VLOOKUP(DFENUM,DATA!B5:BX28,61,0),0)) -> 0
B86: Rate for School Led Elements | J86: =SUM(J70:J85) -> 0 | K86: =SUM(K70:K85) -> 0 | L86: =SUM(L70:L85) -> 0 | M86: =SUM(M70:M85) -> 0 | N86: =SUM(N70:N85) -> 0 | P86: =SUM(P70:P85) -> 0 | Q86: =SUM(Q70:Q85) -> 0 | S86: =SUM(S70:S85) -> 0
L90: Need Type
B91: Total Formula Rate | J91: MLD & SLCN | K91: SEMH | L91: SLD | M91: PD & PMLD | N91: ASD | P91: PD & PMLD | Q91: ASD | S91: PD & PMLD
J92: =J65+J86 -> 10465.7714 | K92: =K65+K86 -> 17140.81564 | L92: =L65+L86 -> 14900.46654 | M92: =M65+M86 -> 22290.85839 | N92: =N65+N86 -> 288.7440833 | P92: =P65+P86 -> 0 | Q92: =Q65+Q86 -> 0 | S92: =S65+S86 -> 0
J93: =ROUND(J92-mldnew,1) -> 10465.8 | K93: =ROUND(K92-besdnew,1) -> 17140.8 | L93: =ROUND(L92-sldnew,1) -> 14900.5 | M93: =ROUND(M92-pdnew,1) -> 22290.9 | N93: =ROUND(N92-asdnew,1) -> 288.7 | P93: =ROUND(P92-pdweekdaynew,1) -> 0 | Q93: =ROUND(Q92-asdweekdaynew,1) -> 0 | S93: =ROUND(S92-pdweekendnew,1) -> 0
N94: =IF(AND(J93=0,K93=0,L93=0,M93=0,N93=0),"OK","ERROR") -> ERROR | S94: =IF(AND(P93=0,Q93=0,S93=0),"OK","ERROR") -> OK
S95: =IF(AND(N94="OK",S94="OK"),"OK","ERROR") -> ERROR
B97: Note
B98: ASD
B99: - All ASD pupils in Stone Bay are funded at ASD2
B100: - 10% of all ASD places in C & I and PSCN Special Schools are funded at ASD2
B108: Section 5 - Analysis of Rate Changes
D111: 2023/24 Financial Year | F111: 2024/25 Financial Year | H111: Movement £ | I111: Movement %
B112: Pupil Led Elements
C113: MLD & SLCN | E113: =IFERROR(VLOOKUP(DFENUM,DATA!$B:$CG,63,0),"") ->  | G113: =IFERROR(VLOOKUP(DFENUM,DATA!$B:$CG,74,0),"") ->  | H113: =IFERROR(G113-E113,"") ->  | I113: =IFERROR(H113/E113,"") -> 
C114: SEMH | E114: =IFERROR(VLOOKUP(DFENUM,DATA!B:CG,64,0),"") ->  | G114: =IFERROR(VLOOKUP(DFENUM,DATA!$B:$CG,75,0),"") ->  | H114: =IFERROR(G114-E114,"") ->  | I114: =IFERROR(H114/E114,"") -> 
C115: SLD | E115: =IFERROR(VLOOKUP(DFENUM,DATA!B:CG,65,0),"") ->  | G115: =IFERROR(VLOOKUP(DFENUM,DATA!$B:$CG,76,0),"") ->  | H115: =IFERROR(G115-E115,"") ->  | I115: =IFERROR(H115/E115,"") -> 
C116: PD & PMLD | E116: =IFERROR(VLOOKUP(DFENUM,DATA!B:CG,66,0),"") ->  | G116: =IFERROR(VLOOKUP(DFENUM,DATA!$B:$CG,77,0),"") ->  | H116: =IFERROR(G116-E116,"") ->  | I116: =IFERROR(H116/E116,"") -> 
C117: ASD | E117: =IFERROR(VLOOKUP(DFENUM,DATA!B:CG,67,0),"") ->  | G117: =IFERROR(VLOOKUP(DFENUM,DATA!$B:$CG,78,0),"") ->  | H117: =IFERROR(G117-E117,"") ->  | I117: =IFERROR(H117/E117,"") -> 
B118: School Led Elements
C119: All | E119: =IFERROR(VLOOKUP(DFENUM,DATA!B:CG,68,0),"") ->  | G119: =IFERROR(VLOOKUP(DFENUM,DATA!$B:$CG,79,0),"") ->  | H119: =IFERROR(G119-E119,"") ->  | I119: =IFERROR(H119/E119,"") -> 
B120: Minimum Funding Guarantee
C121: MLD & SLCN | E121: =IFERROR(VLOOKUP(DFENUM,DATA!B:CG,69,0),"") ->  | G121: =IFERROR(VLOOKUP(DFENUM,DATA!$B:$CG,80,0),"") ->  | H121: =IFERROR(G121-E121,"") ->  | I121: =IFERROR(H121/E121,"") -> 
C122: SEMH | E122: =IFERROR(VLOOKUP(DFENUM,DATA!B:CG,70,0),"") ->  | G122: =IFERROR(VLOOKUP(DFENUM,DATA!$B:$CG,81,0),"") ->  | H122: =IFERROR(G122-E122,"") ->  | I122: =IFERROR(H122/E122,"") -> 
C123: SLD | E123: =IFERROR(VLOOKUP(DFENUM,DATA!B:CG,71,0),"") ->  | G123: =IFERROR(VLOOKUP(DFENUM,DATA!$B:$CG,82,0),"") ->  | H123: =IFERROR(G123-E123,"") ->  | I123: =IFERROR(H123/E123,"") -> 
C124: PD & PMLD | E124: =IFERROR(VLOOKUP(DFENUM,DATA!B:CG,72,0),"") ->  | G124: =IFERROR(VLOOKUP(DFENUM,DATA!$B:$CG,83,0),"") ->  | H124: =IFERROR(G124-E124,"") ->  | I124: =IFERROR(H124/E124,"") -> 
C125: ASD | E125: =IFERROR(VLOOKUP(DFENUM,DATA!B:CG,73,0),"") ->  | G125: =IFERROR(VLOOKUP(DFENUM,DATA!$B:$CG,84,0),"") ->  | H125: =IFERROR(G125-E125,"") ->  | I125: =IFERROR(H125/E125,"") -> 
B128: Section 6 - 2024/25 Nursery Provision Lump Sum Calculation
B130: Rates
B132: Leadership Lump Sum per provision | E132: 59259.55526
B133: Day Rate per FTE (see breakdown) | E133: 10289.51009
B135: Calculation
D137: Units | E137: Rate | F137: Total
B138: Leadership Lump Sum | D138: =IF(D139>9,2,IF(D139>0,1,0)) -> 0 | E138: =E132 -> 59259.55526 | F138: =D138*E138 -> 0
B139: Day Rate | D139: =IFERROR(VLOOKUP('Special Rates 2024-25'!DFENUM,DATA!B:BK,62,0),0) -> 0 | E139: =E133 -> 10289.51009 | F139: =D139*E139 -> 0
E141: Total Funding at this provision: | F141: =IFERROR(ROUND(F139+F138,0),"TBC") -> 0

Sheet DATA (hidden)
B1: 1 | C1: 2 | D1: 3 | E1: 4 | F1: 5 | G1: 6 | H1: 7 | I1: 8 | J1: 9 | K1: 10 | L1: 11 | M1: 12 | N1: 13 | O1: 14 | P1: 15 | Q1: 16 | R1: 17 | S1: 18 | T1: 19 | U1: 20 | V1: 21 | W1: 22 | X1: 23 | Y1: 24 | Z1: 25 | AA1: 26 | AB1: 27 | AC1: 28 | AD1: 29 | AE1: 30 | AF1: 31 | AG1: 32 | AH1: 33 | AI1: 34 | AJ1: 35 | AK1: 36 | AL1: 37 | AM1: 38 | AN1: 39 | AO1: 40 | AP1: 41 | AQ1: 42 | AR1: 43 | AS1: 44 | AT1: 45 | AU1: 46 | AV1: 47 | AW1: 48 | AX1: 49 | AY1: 50 | AZ1: 51 | BA1: 52 | BB1: 53 | BC1: 54 | BD1: 55 | BE1: 56 | BF1: 57 | BG1: 58 | BH1: 59 | BI1: 60 | BJ1: 61 | BK1: 62 | BL1: 63 | BM1: 64 | BN1: 65 | BO1: 66 | BP1: 67 | BQ1: 68 | BR1: 69 | BS1: 70 | BT1: 71 | BU1: 72 | BV1: 73 | BW1: 74 | BX1: 75 | BY1: 76 | BZ1: 77 | CA1: 78 | CB1: 79 | CC1: 80 | CD1: 81 | CE1: 82 | CF1: 83 | CG1: 84
D2: Places | L2: Rates | AV2: Residential Rates | BL2: 2023/24 Financial Year | BW2: 2024/25 Financial Year
D3: Pre-16 | F3: Post-16 | H3: Weekday | J3: Weekend | L3: MLD & SLCN | O3: ASD | R3: SEMH | U3: SLD | X3: PD & PMLD | AD3: London Fringe | AV3: ASD Weekday | AY3: PD Weekday | BB3: PD Weekend | BE3: Residential Winter Rates | BG3: Residential Pupil Fringe | BI3: Residential School Fringe | BL3: Pupil Led | BQ3: School | BR3: MFG | BW3: Pupil Led | CB3: School | CC3: MFG
B4: DFE | C4: School | D4: 23/24 | E4: 24/25 | F4: 23/24 | G4: 24/25 | H4: 23/24 | I4: 24/25 | J4: 23/24 | K4: 24/25 | L4: Summer | M4: Winter | N4: Old Financial Year | O4: Summer | P4: Winter | Q4: Old Financial Year | R4: Summer | S4: Winter | T4: Old Financial Year | U4: Summer | V4: Winter | W4: Old Financial Year | X4: Summer | Y4: Winter | Z4: Old Financial Year | AB4: ASD Rate | AC4: SEMH Rate | AD4: MLD & SLCN | AE4: SEMH | AF4: SLD | AG4: PD & PMLD | AH4: ASD | AI4: Residential weekdayASD | AJ4: Residential weekdayPD & PMLD | AK4: Residential WeekendPD & PMLD | AL4: Gross Day Floor Area | AM4: Residential floor area weekday | AN4: Residential floor area weekend | AO4: Grounds site area | AP4: Rentals | AQ4: Hydrotherapy Pool | AR4: No of FSM | AS4: London Fringe | AT4: Split site- Band 1 | AU4: Split site - Band 2 | AV4: Summer | AW4: Last Financial Year | AX4: Winter | AY4: Summer | AZ4: Last Financial Year | BA4: Winter | BB4: Summer | BC4: Last Financial Year | BD4: Winter | BE4: Weekday | BF4: Weekend | BG4: Weekday | BH4: Weekend | BI4: Weekday | BJ4: Weekend | BK4: Nursery FTE | BL4: MLD&SLCN | BM4: SEMH | BN4: SLD | BO4: PD&PMLD | BP4: ASD | BQ4: All | BR4: MLD&SLCN | BS4: SEMH | BT4: SLD | BU4: PD&PMLD | BV4: ASD | BW4: MLD&SLCN | BX4: SEMH | BY4: SLD | BZ4: PD&PMLD | CA4: ASD | CB4: All | CC4: MLD&SLCN | CD4: SEMH | CE4: SLD | CF4: PD&PMLD | CG4: ASD
B5: 7002 | C5: Broomhill Bank School | D5: 269 | E5: 280 | F5: 107 | G5: 113 | H5: 23 | I5: 23 | J5: 0 | K5: 0 | L5: 12931.64807 | M5: 12942.12158 | N5: 14965.72 | O5: 20466.77085 | P5: 20477.24436 | Q5: 21162.08 | R5: 19622.82019 | S5: 19633.2937 | T5: 19460.6 | U5: 17392.61572 | V5: 17403.08923 | W5: 18625.91 | X5: 24826.76304 | Y5: 24837.23655 | Z5: 24729.9 | AB5: 17665.98073 | AC5: 16852.07156 | AD5: 46.33561606 | AE5: 62.46350059 | AF5: 72.60812689 | AG5: 116.3636006 | AH5: 92.50498512 | AI5: 0 | AJ5: 0 | AK5: 0 | AL5: 12163 | AM5: 632.1069985 | AN5: 0 | AO5: 10.685 | AP5: 0 | AQ5: 0 | AR5: 0.3333333333 | AS5: 1 | AT5: 0 | AU5: 1 | AV5: 60990.60446 | AW5: 61572.78 | AX5: 60445.6602 | AY5: 0 | AZ5: 0 | BA5: 0 | BB5: 0 | BC5: 0 | BD5: 0 | BE5: 27770.88847 | BF5: 0 | BG5: 1008.417575 | BH5: 0 | BI5: 11.24456274 | BJ5: 0 | BK5: 0 | BL5: 10305.98727 | BM5: 16865.95994 | BN5: 14679.48497 | BO5: 21967.8647 | BP5: 17693.36255 | BQ5: 2540.795094 | BR5: 2118.942533 | BS5: 53.84496328 | BT5: 1405.632237 | BU5: 221.2385087 | BV5: 927.9236592 | BW5: 10512.10702 | BX5: 17203.27914 | BY5: 14973.07467 | BZ5: 22407.22199 | CA5: 18047.2298 | CB5: 2425.650597 | CC5: 2102.790985 | CD5: 0 | CE5: 1320.314284 | CF5: 20.67691176 | CG5: 795.0100052
B6: 7005 | C6: Aspire School | D6: 172 | E6: 174 | F6: 0 | G6: 0 | H6: 0 | I6: 0 | J6: 0 | K6: 0 | L6: 13693.51399 | M6: 13672.92387 | N6: 13463.8 | O6: 21182.4674 | P6: 21161.87728 | Q6: 20805.92 | R6: 20368.55823 | S6: 20347.96811 | T6: 20007.97 | U6: 18128.20913 | V6: 18107.61901 | W6: 17811.55 | X6: 25518.60098 | Y6: 25498.01086 | Z6: 25057.03 | AB6: 17665.98073 | AC6: 16852.07156 | AD6: 0 | AE6: 0 | AF6: 0 | AG6: 0 | AH6: 0 | AI6: 0 | AJ6: 0 | AK6: 0 | AL6: 3227 | AM6: 0 | AN6: 0 | AO6: 1.7432 | AP6: 0 | AQ6: 0 | AR6: 0.3866666667 | AS6: 0 | AT6: 0 | AU6: 0 | AV6: 0 | AW6: 0 | AX6: 0 | AY6: 0 | AZ6: 0 | BA6: 0 | BB6: 0 | BC6: 0 | BD6: 0 | BE6: 0 | BF6: 0 | BG6: 0 | BH6: 0 | BI6: 0 | BJ6: 0 | BK6: 0 | BL6: 10260.5602 | BM6: 16804.72122 | BN6: 14608.30053 | BO6: 21853.78274 | BP6: 17602.67138 | BQ6: 3203.244512 | BR6: 0 | BS6: 0 | BT6: 0 | BU6: 0 | BV6: 0 | BW6: 10465.7714 | BX6: 17140.81564 | BY6: 14900.46654 | BZ6: 22290.85839 | CA6: 17954.72481 | CB6: 3215.731684 | CC6: 0 | CD6: 0 | CE6: 0 | CF6: 0 | CG6: 0
B7: 7006 | C7: Snowfields Academy | D7: 238 | E7: 276 | F7: 10 | G7: 48 | H7: 0 | I7: 0 | J7: 0 | K7: 0 | L7: 13556.93339 | M7: 12875.51272 | N7: 13927.61 | O7: 21045.8868 | P7: 20364.46613 | Q7: 21269.72 | R7: 20231.97763 | S7: 19550.55696 | T7: 20471.77 | U7: 17991.62853 | V7: 17310.20786 | W7: 18275.35 | X7: 25382.02038 | Y7: 24700.59971 | Z7: 25520.84 | AB7: 17665.98073 | AC7: 16852.07156 | AD7: 0 | AE7: 0 | AF7: 0 | AG7: 0 | AH7: 0 | AI7: 0 | AJ7: 0 | AK7: 0 | AL7: 7642 | AM7: 0 | AN7: 0 | AO7: 7.3 | AP7: 0 | AQ7: 0 | AR7: 0.337962963 | AS7: 0 | AT7: 0 | AU7: 1 | AV7: 0 | AW7: 0 | AX7: 0 | AY7: 0 | AZ7: 0 | BA7: 0 | BB7: 0 | BC7: 0 | BD7: 0 | BE7: 0 | BF7: 0 | BG7: 0 | BH7: 0 | BI7: 0 | BJ7: 0 | BK7: 0 | BL7: 10260.5602 | BM7: 16804.72122 | BN7: 14608.30053 | BO7: 21853.78274 | BP7: 17602.67138 | BQ7: 3667.053556 | BR7: 0 | BS7: 0 | BT7: 0 | BU7: 0 | BV7: 0 | BW7: 10465.7714 | BX7: 17140.81564 | BY7: 14900.46654 | BZ7: 22290.85839 | CA7: 17954.72481 | CB7: 2693.666599 | CC7: 837.8100496 | CD7: 739.6466109 | CE7: 772.59361 | CF7: 663.9192113 | CG7: 727.6771893
B8: 7021 | C8: Valence School | D8: 80 | E8: 85 | F8: 30 | G8: 30 | H8: 46 | I8: 46 | J8: 18 | K8: 18 | L8: 17566.71571 | M8: 17302.58409 | N8: 17235.91 | O8: 24378.05468 | P8: 24113.92306 | Q8: 23913.69 | R8: 24294.65941 | S8: 24030.52778 | T8: 23831.93 | U8: 22087.58468 | V8: 21823.45306 | W8: 21668.13 | X8: 29621.49448 | Y8: 29357.36286 | Z8: 29054.32 | AB8: 16852.07156 | AC8: 16852.07156 | AD8: 177.1970337 | AE8: 230.096495 | AF8: 263.3708692 | AG8: 406.8888231 | AH8: 313.4917655 | AI8: 0 | AJ8: 0 | AK8: 0 | AL8: 8799 | AM8: 0 | AN8: 1924 | AO8: 18.322 | AP8: 0 | AQ8: 1 | AR8: 0.3292682927 | AS8: 1 | AT8: 0 | AU8: 0 | AV8: 0 | AW8: 0 | AX8: 0 | AY8: 82772.64683 | AZ8: 81163.29 | BA8: 81655.49438 | BB8: 111492.8674 | BC8: 109320.37 | BD8: 109838.73 | BE8: 42651.04132 | BF8: 26849.24853 | BG8: 1304.141611 | BH8: 1847.005096 | BI8: 38.42707093 | BJ8: 38.42707093 | BK8: 0 | BL8: 10434.28278 | BM8: 17030.30602 | BN8: 14866.50727 | BO8: 22252.69335 | BP8: 17112.06608 | BQ8: 6801.627604 | BR8: 0 | BS8: 0 | BT8: 0 | BU8: 0 | BV8: 0 | BW8: 10642.96844 | BX8: 17370.91214 | BY8: 15163.83741 | BZ8: 22697.74721 | CA8: 17454.30741 | CB8: 6769.670491 | CC8: 0 | CD8: 0 | CE8: 0 | CF8: 0 | CG8: 0
B9: 7032 | C9: Bower Grove School | D9: 225 | E9: 225 | F9: 0 | G9: 0 | H9: 0 | I9: 0 | J9: 0 | K9: 0 | L9: 13257.32129 | M9: 13287.92429 | N9: 12988.56 | O9: 19932.36553 | P9: 19962.96853 | Q9: 19532.72 | R9: 19932.36553 | S9: 19962.96853 | T9: 19532.72 | U9: 17692.01643 | V9: 17722.61943 | W9: 17336.3 | X9: 25082.40828 | Y9: 25113.01128 | Z9: 24581.78 | AB9: 16852.07156 | AC9: 16852.07156 | AD9: 0 | AE9: 0 | AF9: 0 | AG9: 0 | AH9: 0 | AI9: 0 | AJ9: 0 | AK9: 0 | AL9: 4185.3 | AM9: 0 | AN9: 0 | AO9: 2.1496 | AP9: 0 | AQ9: 0 | AR9: 0.6583333333 | AS9: 0 | AT9: 1 | AU9: 0 | AV9: 0 | AW9: 0 | AX9: 0 | AY9: 0 | AZ9: 0 | BA9: 0 | BB9: 0 | BC9: 0 | BD9: 0 | BE9: 0 | BF9: 0 | BG9: 0 | BH9: 0 | BI9: 0 | BJ9: 0 | BK9: 0 | BL9: 10260.5602 | BM9: 16804.72122 | BN9: 14608.30053 | BO9: 21853.78274 | BP9: 16804.72122 | BQ9: 2727.999947 | BR9: 0 | BS9: 0 | BT9: 0 | BU9: 0 | BV9: 0 | BW9: 10465.7714 | BX9: 17140.81564 | BY9: 14900.46654 | BZ9: 22290.85839 | CA9: 17140.81564 | CB9: 2809.401639 | CC9: 0 | CD9: 0 | CE9: 0 | CF9: 0 | CG9: 0
B10: 7033 | C10: St Anthony's School | D10: 106 | E10: 98 | F10: 0 | G10: 0 | H10: 0 | I10: 0 | J10: 0 | K10: 0 | L10: 15898.459 | M10: 16313.24003 | N10: 15632.56 | O10: 22573.50324 | P10: 22988.28427 | Q10: 22055.98 | R10: 22573.50324 | S10: 22988.28427 | T10: 22055.98 | U10: 20333.15414 | V10: 20747.93517 | W10: 19900.08 | X10: 27723.54599 | Y10: 28138.32702 | Z10: 27098.77 | AB10: 16852.07156 | AC10: 16852.07156 | AD10: 0 | AE10: 0 | AF10: 0 | AG10: 0 | AH10: 0 | AI10: 0 | AJ10: 0 | AK10: 0 | AL10: 3614 | AM10: 0 | AN10: 0 | AO10: 1.54 | AP10: 0 | AQ10: 0 | AR10: 0.7281553398 | AS10: 0 | AT10: 0 | AU10: 0 | AV10: 0 | AW10: 0 | AX10: 0 | AY10: 0 | AZ10: 0 | BA10: 0 | BB10: 0 | BC10: 0 | BD10: 0 | BE10: 0 | BF10: 0 | BG10: 0 | BH10: 0 | BI10: 0 | BJ10: 0 | BK10: 0 | BL10: 10260.5602 | BM10: 16804.72122 | BN10: 14608.30053 | BO10: 21853.78274 | BP10: 16804.72122 | BQ10: 5244.98594 | BR10: 127.0105888 | BS10: 6.275133545 | BT10: 46.79764676 | BU10: 0 | BV10: 6.275133545 | BW10: 10465.7714 | BX10: 17140.81564 | BY10: 14900.46654 | BZ10: 22290.85839 | CA10: 17140.81564 | CB10: 5674.6432 | CC10: 0 | CD10: 0 | CE10: 0 | CF10: 0 | CG10: 0
B11: 7039 | C11: The Ifield School | D11: 227 | E11: 221 | F11: 39 | G11: 45 | H11: 0 | I11: 0 | J11: 0 | K11: 0 | L11: 13109.06434 | M11: 13142.41403 | N11: 12877.16 | O11: 20598.01775 | P11: 20631.36745 | Q11: 20219.27 | R11: 19784.10858 | S11: 19817.45827 | T11: 19421.32 | U11: 17543.75948 | V11: 17577.10917 | W11: 17224.9 | X11: 24934.15133 | Y11: 24967.50102 | Z11: 24470.38 | AB11: 17665.98073 | AC11: 16852.07156 | AD11: 0 | AE11: 0 | AF11: 0 | AG11: 0 | AH11: 0 | AI11: 0 | AJ11: 0 | AK11: 0 | AL11: 4274.139996 | AM11: 0 | AN11: 0 | AO11: 6.22 | AP11: 75000 | AQ11: 1 | AR11: 0.4644549763 | AS11: 0 | AT11: 1 | AU11: 0 | AV11: 0 | AW11: 0 | AX11: 0 | AY11: 0 | AZ11: 0 | BA11: 0 | BB11: 0 | BC11: 0 | BD11: 0 | BE11: 0 | BF11: 0 | BG11: 0 | BH11: 0 | BI11: 0 | BJ11: 0 | BK11: 6 | BL11: 10260.5602 | BM11: 16804.72122 | BN11: 14608.30053 | BO11: 21853.78274 | BP11: 17602.67138 | BQ11: 2616.597097 | BR11: 0 | BS11: 0 | BT11: 0 | BU11: 0 | BV11: 0 | BW11: 10465.7714 | BX11: 17140.81564 | BY11: 14900.46654 | BZ11: 22290.85839 | CA11: 17954.72481 | CB11: 2662.746928 | CC11: 0 | CD11: 0 | CE11: 0 | CF11: 0 | CG11: 0
B12: 7040 | C12: Foreland Fields School | D12: 213 | E12: 210 | F12: 30 | G12: 34 | H12: 0 | I12: 0 | J12: 0 | K12: 0 | L12: 13368.39014 | M12: 13398.82499 | N12: 13116.84 | O12: 20857.34355 | P12: 20887.7784 | Q12: 20458.96 | R12: 20043.43437 | S12: 20073.86923 | T12: 19661.01 | U12: 17803.08527 | V12: 17833.52013 | W12: 17464.58 | X12: 25193.47712 | Y12: 25223.91198 | Z12: 24710.07 | AB12: 17665.98073 | AC12: 16852.07156 | AD12: 0 | AE12: 0 | AF12: 0 | AG12: 0 | AH12: 0 | AI12: 0 | AJ12: 0 | AK12: 0 | AL12: 4705.83 | AM12: 0 | AN12: 0 | AO12: 4.4853 | AP12: 63000 | AQ12: 1 | AR12: 0.4882629108 | AS12: 0 | AT12: 2 | AU12: 0 | AV12: 0 | AW12: 0 | AX12: 0 | AY12: 0 | AZ12: 0 | BA12: 0 | BB12: 0 | BC12: 0 | BD12: 0 | BE12: 0 | BF12: 0 | BG12: 0 | BH12: 0 | BI12: 0 | BJ12: 0 | BK12: 10 | BL12: 10260.5602 | BM12: 16804.72122 | BN12: 14608.30053 | BO12: 21853.78274 | BP12: 17602.67138 | BQ12: 2856.28429 | BR12: 0 | BS12: 0 | BT12: 0 | BU12: 0 | BV12: 0 | BW12: 10465.7714 | BX12: 17140.81564 | BY12: 14900.46654 | BZ12: 22290.85839 | CA12: 17954.72481 | CB12: 2920.372397 | CC12: 0 | CD12: 0 | CE12: 0 | CF12: 0 | CG12: 0
B13: 7041 | C13: Goldwyn School | D13: 160 | E13: 160 | F13: 35 | G13: 35 | H13: 0 | I13: 0 | J13: 0 | K13: 0 | L13: 14411.35989 | M13: 15096.21855 | N13: 14529.21 | O13: 21086.40413 | P13: 21771.26279 | Q13: 20670.83 | R13: 21086.40413 | S13: 21771.26279 | T13: 20670.83 | U13: 18846.05503 | V13: 19530.91369 | W13: 18474.41 | X13: 26236.44688 | Y13: 26921.30554 | Z13: 25719.89 | AB13: 16852.07156 | AC13: 16852.07156 | AD13: 0 | AE13: 0 | AF13: 0 | AG13: 0 | AH13: 0 | AI13: 0 | AJ13: 0 | AK13: 0 | AL13: 5856.38009 | AM13: 0 | AN13: 0 | AO13: 7.3492 | AP13: 47900 | AQ13: 0 | AR13: 0.4906832298 | AS13: 0 | AT13: 2 | AU13: 4 | AV13: 0 | AW13: 0 | AX13: 0 | AY13: 0 | AZ13: 0 | BA13: 0 | BB13: 0 | BC13: 0 | BD13: 0 | BE13: 0 | BF13: 0 | BG13: 0 | BH13: 0 | BI13: 0 | BJ13: 0 | BK13: 0 | BL13: 10260.5602 | BM13: 16804.72122 | BN13: 14608.30053 | BO13: 21853.78274 | BP13: 16804.72122 | BQ13: 3866.110765 | BR13: 402.5399369 | BS13: 0 | BT13: 0 | BU13: 0 | BV13: 0 | BW13: 10465.7714 | BX13: 17140.81564 | BY13: 14900.46654 | BZ13: 22290.85839 | CA13: 17140.81564 | CB13: 4345.089375 | CC13: 0 | CD13: 0 | CE13: 0 | CF13: 0 | CG13: 0
B14: 7043 | C14: The Beacon Folkestone | D14: 278 | E14: 324 | F14: 130 | G14: 84 | H14: 0 | I14: 0 | J14: 0 | K14: 0 | L14: 12592.26619 | M14: 12732.96485 | N14: 12356.34 | O14: 20081.2196 | P14: 20221.91826 | Q14: 19698.45 | R14: 19267.31043 | S14: 19408.00909 | T14: 18900.5 | U14: 17026.96133 | V14: 17167.65999 | W14: 16704.08 | X14: 24417.35318 | Y14: 24558.05184 | Z14: 23949.56 | AB14: 17665.98073 | AC14: 16852.07156 | AD14: 0 | AE14: 0 | AF14: 0 | AG14: 0 | AH14: 0 | AI14: 0 | AJ14: 0 | AK14: 0 | AL14: 10148 | AM14: 0 | AN14: 0 | AO14: 5.4561 | AP14: 0 | AQ14: 1 | AR14: 0.549382716 | AS14: 0 | AT14: 0 | AU14: 1 | AV14: 0 | AW14: 0 | AX14: 0 | AY14: 0 | AZ14: 0 | BA14: 0 | BB14: 0 | BC14: 0 | BD14: 0 | BE14: 0 | BF14: 0 | BG14: 0 | BH14: 0 | BI14: 0 | BJ14: 0 | BK14: 10 | BL14: 10260.5602 | BM14: 16804.72122 | BN14: 14608.30053 | BO14: 21853.78274 | BP14: 17602.67138 | BQ14: 2095.77601 | BR14: 0 | BS14: 0 | BT14: 0 | BU14: 0 | BV14: 0 | BW14: 10465.7714 | BX14: 17140.81564 | BY14: 14900.46654 | BZ14: 22290.85839 | CA14: 17954.72481 | CB14: 2208.569007 | CC14: 0 | CD14: 0 | CE14: 0 | CF14: 0 | CG14: 0
B15: 7044 | C15: Rowhill School | D15: 132 | E15: 150 | F15: 0 | G15: 0 | H15: 0 | I15: 0 | J15: 0 | K15: 0 | L15: 15186.49054 | M15: 14679.94941 | N15: 14972.18 | O15: 21997.82951 | P15: 21491.28838 | Q15: 21564.93 | R15: 21923.04571 | S15: 21416.50457 | T15: 21491.61 | U15: 19707.35952 | V15: 19200.81838 | W15: 19319.37 | X15: 27241.26932 | Y15: 26734.72818 | Z15: 26705.55 | AB15: 16852.07156 | AC15: 16852.07156 | AD15: 177.1970337 | AE15: 238.7079631 | AF15: 263.3708692 | AG15: 406.8888231 | AH15: 313.4917655 | AI15: 0 | AJ15: 0 | AK15: 0 | AL15: 4165 | AM15: 0 | AN15: 0 | AO15: 1.8948 | AP15: 0 | AQ15: 0 | AR15: 0.5975609756 | AS15: 1 | AT15: 0 | AU15: 0 | AV15: 0 | AW15: 0 | AX15: 0 | AY15: 0 | AZ15: 0 | BA15: 0 | BB15: 0 | BC15: 0 | BD15: 0 | BE15: 0 | BF15: 0 | BG15: 0 | BH15: 0 | BI15: 0 | BJ15: 0 | BK15: 0 | BL15: 10434.28278 | BM15: 17038.74863 | BN15: 14866.50727 | BO15: 22252.69335 | BP15: 17112.06608 | BQ15: 4452.859957 | BR15: 85.04026313 | BS15: 0 | BT15: 0 | BU15: 0 | BV15: 0 | BW15: 10642.96844 | BX15: 17379.5236 | BY15: 15163.83741 | BZ15: 22697.74721 | CA15: 17454.30741 | CB15: 4248.039777 | CC15: 156.0326877 | CD15: 0 | CE15: 4.089662557 | CF15: 0 | CG15: 0
B16: 7045 | C16: Elms School | D16: 152 | E16: 152 | F16: 0 | G16: 0 | H16: 0 | I16: 0 | J16: 0 | K16: 0 | L16: 14210.2118 | M16: 14221.05608 | N16: 13877.16 | O16: 20885.25604 | P16: 20896.10032 | Q16: 20421.32 | R16: 20885.25604 | S16: 20896.10032 | T16: 20421.32 | U16: 18644.90694 | V16: 18655.75122 | W16: 18224.9 | X16: 26035.29879 | Y16: 26046.14307 | Z16: 25470.38 | AB16: 16852.07156 | AC16: 16852.07156 | AD16: 0 | AE16: 0 | AF16: 0 | AG16: 0 | AH16: 0 | AI16: 0 | AJ16: 0 | AK16: 0 | AL16: 2771 | AM16: 0 | AN16: 0 | AO16: 2.13 | AP16: 0 | AQ16: 0 | AR16: 0.8294573643 | AS16: 0 | AT16: 0 | AU16: 0 | AV16: 0 | AW16: 0 | AX16: 0 | AY16: 0 | AZ16: 0 | BA16: 0 | BB16: 0 | BC16: 0 | BD16: 0 | BE16: 0 | BF16: 0 | BG16: 0 | BH16: 0 | BI16: 0 | BJ16: 0 | BK16: 0 | BL16: 10260.5602 | BM16: 16804.72122 | BN16: 14608.30053 | BO16: 21853.78274 | BP16: 16804.72122 | BQ16: 3616.595808 | BR16: 0 | BS16: 0 | BT16: 0 | BU16: 0 | BV16: 0 | BW16: 10465.7714 | BX16: 17140.81564 | BY16: 14900.46654 | BZ16: 22290.85839 | CA16: 17140.81564 | CB16: 3750.766229 | CC16: 0 | CD16: 0 | CE16: 0 | CF16: 0 | CG16: 0
B17: 7051 | C17: Nexus School | D17: 256 | E17: 256 | F17: 39 | G17: 39 | H17: 0 | I17: 0 | J17: 0 | K17: 0 | L17: 13053.7856 | M17: 13070.39474 | N17: 13156.27 | O17: 20542.73901 | P17: 20559.34815 | Q17: 20227.13 | R17: 19728.82983 | S17: 19745.43897 | T17: 19443.9 | U17: 17488.48074 | V17: 17505.08988 | W17: 17288 | X17: 24878.87258 | Y17: 24895.48172 | Z17: 24455.66 | AB17: 17665.98073 | AC17: 16852.07156 | AD17: 0 | AE17: 0 | AF17: 0 | AG17: 0 | AH17: 0 | AI17: 0 | AJ17: 0 | AK17: 0 | AL17: 7075.8 | AM17: 0 | AN17: 0 | AO17: 2.36 | AP17: 0 | AQ17: 1 | AR17: 0.423255814 | AS17: 0 | AT17: 0 | AU17: 1 | AV17: 0 | AW17: 0 | AX17: 0 | AY17: 0 | AZ17: 0 | BA17: 0 | BB17: 0 | BC17: 0 | BD17: 0 | BE17: 0 | BF17: 0 | BG17: 0 | BH17: 0 | BI17: 0 | BJ17: 0 | BK17: 8 | BL17: 10260.5602 | BM17: 16804.72122 | BN17: 14608.30053 | BO17: 21853.78274 | BP17: 17602.67138 | BQ17: 2601.877972 | BR17: 293.83423 | BS17: 37.29841983 | BT17: 77.82093305 | BU17: 0 | BV17: 22.57676544 | BW17: 10465.7714 | BX17: 17140.81564 | BY17: 14900.46654 | BZ17: 22290.85839 | CA17: 17954.72481 | CB17: 2597.702859 | CC17: 158.5770895 | CD17: 0 | CE17: 0 | CF17: 0 | CG17: 0
B18: 7052 | C18: Grange Park School | D18: 95 | E18: 136 | F18: 60 | G18: 75 | H18: 0 | I18: 0 | J18: 0 | K18: 0 | L18: 13934.97717 | M18: 13051.11215 | N18: 13575.95 | O18: 21423.93058 | P18: 20540.06556 | Q18: 20918.06 | R18: 20610.02141 | S18: 19726.15638 | T18: 20120.11 | U18: 18369.67231 | V18: 17485.80729 | W18: 17923.69 | X18: 25760.06416 | Y18: 24876.19913 | Z18: 25169.18 | AB18: 17665.98073 | AC18: 16852.07156 | AD18: 0 | AE18: 0 | AF18: 0 | AG18: 0 | AH18: 0 | AI18: 0 | AJ18: 0 | AK18: 0 | AL18: 2589.33 | AM18: 0 | AN18: 0 | AO18: 1.2465 | AP18: 0 | AQ18: 0 | AR18: 0.3684210526 | AS18: 0 | AT18: 1 | AU18: 0 | AV18: 0 | AW18: 0 | AX18: 0 | AY18: 0 | AZ18: 0 | BA18: 0 | BB18: 0 | BC18: 0 | BD18: 0 | BE18: 0 | BF18: 0 | BG18: 0 | BH18: 0 | BI18: 0 | BJ18: 0 | BK18: 0 | BL18: 10260.5602 | BM18: 16804.72122 | BN18: 14608.30053 | BO18: 21853.78274 | BP18: 17602.67138 | BQ18: 3315.393498 | BR18: 0 | BS18: 0 | BT18: 0 | BU18: 0 | BV18: 0 | BW18: 10465.7714 | BX18: 17140.81564 | BY18: 14900.46654 | BZ18: 22290.85839 | CA18: 17954.72481 | CB18: 2953.617836 | CC18: 224.440512 | CD18: 126.2770733 | CE18: 159.2240724 | CF18: 50.54967375 | CG18: 114.3076517
B19: 7056 | C19: Five Acre Wood School | D19: 648 | E19: 728 | F19: 77 | G19: 110 | H19: 0 | I19: 0 | J19: 0 | K19: 0 | L19: 11795.64212 | M19: 11679.16514 | N19: 11645.24 | O19: 19284.59553 | P19: 19168.11855 | Q19: 18987.35 | R19: 18470.68636 | S19: 18354.20938 | T19: 18189.4 | U19: 16230.33726 | V19: 16113.86028 | W19: 15992.98 | X19: 23620.7291 | Y19: 23504.25213 | Z19: 23238.46 | AB19: 17665.98073 | AC19: 16852.07156 | AD19: 0 | AE19: 0 | AF19: 0 | AG19: 0 | AH19: 0 | AI19: 0 | AJ19: 0 | AK19: 0 | AL19: 11119.17 | AM19: 0 | AN19: 0 | AO19: 2.6382 | AP19: 9259 | AQ19: 1 | AR19: 0.3866666667 | AS19: 0 | AT19: 1 | AU19: 1 | AV19: 0 | AW19: 0 | AX19: 0 | AY19: 0 | AZ19: 0 | BA19: 0 | BB19: 0 | BC19: 0 | BD19: 0 | BE19: 0 | BF19: 0 | BG19: 0 | BH19: 0 | BI19: 0 | BJ19: 0 | BK19: 15 | BL19: 10260.5602 | BM19: 16804.72122 | BN19: 14608.30053 | BO19: 21853.78274 | BP19: 17602.67138 | BQ19: 1384.675893 | BR19: 0 | BS19: 0 | BT19: 0 | BU19: 0 | BV19: 0 | BW19: 10465.7714 | BX19: 17140.81564 | BY19: 14900.46654 | BZ19: 22290.85839 | CA19: 17954.72481 | CB19: 1261.92581 | CC19: 0 | CD19: 0 | CE19: 0 | CF19: 0 | CG19: 0
B20: 7058 | C20: Stone Bay School | D20: 92 | E20: 95 | F20: 11 | G20: 8 | H20: 10 | I20: 10 | J20: 0 | K20: 0 | L20: 15607.4935 | M20: 15626.4305 | N20: 17032.5 | O20: 30421.62945 | P20: 30440.56646 | Q20: 30448.74 | R20: 22282.53774 | S20: 22301.47474 | T20: 22338.07 | U20: 20042.18864 | V20: 20061.12564 | W20: 21016.38 | X20: 27432.58049 | Y20: 27451.51749 | Z20: 27656.14 | AB20: 24991.16327 | AC20: 16852.07156 | AD20: 0 | AE20: 0 | AF20: 0 | AG20: 0 | AH20: 0 | AI20: 0 | AJ20: 0 | AK20: 0 | AL20: 2396.216342 | AM20: 1481.783658 | AN20: 0 | AO20: 0.96 | AP20: 0 | AQ20: 1 | AR20: 0.5979381443 | AS20: 0 | AT20: 0 | AU20: 0 | AV20: 93825.4612 | AW20: 92041.87 | AX20: 93165.72636 | AY20: 90836.41224 | AZ20: 89111.43 | BA20: 90176.67739 | BB20: 0 | BC20: 0 | BD20: 0 | BE20: 33933.59232 | BF20: 0 | BG20: 0 | BH20: 0 | BI20: 0 | BJ20: 0 | BK20: 0 | BL20: 10260.5602 | BM20: 16804.72122 | BN20: 14608.30053 | BO20: 21853.78274 | BP20: 24784.2229 | BQ20: 5097.032626 | BR20: 1674.909477 | BS20: 436.320355 | BT20: 1311.044344 | BU20: 705.323239 | BV20: 567.4808754 | BW20: 10465.7714 | BX20: 17140.81564 | BY20: 14900.46654 | BZ20: 22290.85839 | CA20: 25279.90736 | CB20: 5152.768682 | CC20: 1499.122416 | CD20: 156.1760275 | CE20: 1068.226677 | CF20: 350.7936279 | CG20: 168.3076611
B21: 7062 | C21: The Orchard School | D21: 100 | E21: 100 | F21: 0 | G21: 0 | H21: 0 | I21: 0 | J21: 0 | K21: 0 | L21: 15806.53917 | M21: 15808.32298 | N21: 16044.43 | O21: 22481.5834 | P21: 22483.36722 | Q21: 22467.86 | R21: 22481.5834 | S21: 22483.36722 | T21: 22467.86 | U21: 20241.23431 | V21: 20243.01812 | W21: 20311.96 | X21: 27631.62615 | Y21: 27633.40997 | Z21: 27423.77 | AB21: 16852.07156 | AC21: 16852.07156 | AD21: 0 | AE21: 0 | AF21: 0 | AG21: 0 | AH21: 0 | AI21: 0 | AJ21: 0 | AK21: 0 | AL21: 2505 | AM21: 0 | AN21: 0 | AO21: 1.81 | AP21: 0 | AQ21: 0 | AR21: 0.6930693069 | AS21: 0 | AT21: 0 | AU21: 0 | AV21: 0 | AW21: 0 | AX21: 0 | AY21: 0 | AZ21: 0 | BA21: 0 | BB21: 0 | BC21: 0 | BD21: 0 | BE21: 0 | BF21: 0 | BG21: 0 | BH21: 0 | BI21: 0 | BJ21: 0 | BK21: 0 | BL21: 10260.5602 | BM21: 16804.72122 | BN21: 14608.30053 | BO21: 21853.78274 | BP21: 16804.72122 | BQ21: 5381.533091 | BR21: 402.3399091 | BS21: 281.6044538 | BT21: 322.126967 | BU21: 188.4525984 | BV21: 281.6044538 | BW21: 10465.7714 | BX21: 17140.81564 | BY21: 14900.46654 | BZ21: 22290.85839 | CA21: 17140.81564 | CB21: 5341.808322 | CC21: 317.0724262 | CD21: 97.57533754 | CE21: 171.2449366 | CF21: 0 | CG21: 97.57533754
B22: 7063 | C22: St Nicholas' School | D22: 311 | E22: 297 | F22: 44 | G22: 43 | H22: 0 | I22: 0 | J22: 0 | K22: 0 | L22: 13060.767 | M22: 13189.41446 | N22: 12931.57 | O22: 20549.72041 | P22: 20678.36787 | Q22: 20163.31 | R22: 19735.81124 | S22: 19864.4587 | T22: 19365.36 | U22: 17495.46214 | V22: 17624.1096 | W22: 17199.1 | X22: 24885.85399 | Y22: 25014.50145 | Z22: 24414.43 | AB22: 17665.98073 | AC22: 16852.07156 | AD22: 0 | AE22: 0 | AF22: 0 | AG22: 0 | AH22: 0 | AI22: 0 | AJ22: 0 | AK22: 0 | AL22: 3971.77001 | AM22: 0 | AN22: 0 | AO22: 0.9305 | AP22: 137214 | AQ22: 1 | AR22: 0.464516129 | AS22: 0 | AT22: 5 | AU22: 3 | AV22: 0 | AW22: 0 | AX22: 0 | AY22: 0 | AZ22: 0 | BA22: 0 | BB22: 0 | BC22: 0 | BD22: 0 | BE22: 0 | BF22: 0 | BG22: 0 | BH22: 0 | BI22: 0 | BJ22: 0 | BK22: 6 | BL22: 10260.5602 | BM22: 16804.72122 | BN22: 14608.30053 | BO22: 21853.78274 | BP22: 17602.67138 | BQ22: 2560.642726 | BR22: 110.3673317 | BS22: 0 | BT22: 30.15438962 | BU22: 0 | BV22: 0 | BW22: 10465.7714 | BX22: 17140.81564 | BY22: 14900.46654 | BZ22: 22290.85839 | CA22: 17954.72481 | CB22: 2670.039948 | CC22: 0 | CD22: 0 | CE22: 0 | CF22: 0 | CG22: 0
B23: 7066 | C23: Milestone Academy | D23: 326 | E23: 288 | F23: 37 | G23: 75 | H23: 0 | I23: 0 | J23: 0 | K23: 0 | L23: 13015.33056 | M23: 13024.22582 | N23: 12758.49 | O23: 20655.7195 | P23: 20664.61476 | Q23: 20249.06 | R23: 19743.27426 | S23: 19752.16952 | T23: 19354.51 | U23: 17536.19954 | V23: 17545.0948 | W23: 17190.71 | X23: 25070.10934 | Y23: 25079.0046 | Z23: 24576.9 | AB23: 17665.98073 | AC23: 16852.07156 | AD23: 177.5908941 | AE23: 230.4903553 | AF23: 263.7647296 | AG23: 407.2826834 | AH23: 329.0264246 | AI23: 0 | AJ23: 0 | AK23: 0 | AL23: 7151 | AM23: 0 | AN23: 0 | AO23: 4.6769 | AP23: 0 | AQ23: 1 | AR23: 0.3322259136 | AS23: 1 | AT23: 0 | AU23: 3 | AV23: 0 | AW23: 0 | AX23: 0 | AY23: 0 | AZ23: 0 | BA23: 0 | BB23: 0 | BC23: 0 | BD23: 0 | BE23: 0 | BF23: 0 | BG23: 0 | BH23: 0 | BI23: 0 | BJ23: 0 | BK23: 12 | BL23: 10434.66892 | BM23: 17030.69215 | BN23: 14866.8934 | BO23: 22253.07948 | BP23: 17925.24631 | BQ23: 2323.817309 | BR23: 0 | BS23: 0 | BT23: 0 | BU23: 0 | BV23: 0 | BW23: 10643.3623 | BX23: 17371.306 | BY23: 15164.23127 | BZ23: 22698.14107 | CA23: 18283.75124 | CB23: 2377.157169 | CC23: 0 | CD23: 0 | CE23: 0 | CF23: 0 | CG23: 0
B24: 7067 | C24: Portal House School | D24: 80 | E24: 80 | F24: 0 | G24: 0 | H24: 0 | I24: 0 | J24: 0 | K24: 0 | L24: 17537.53865 | M24: 17576.86421 | N24: 17172.25 | O24: 24212.58289 | P24: 24251.90845 | Q24: 23716.41 | R24: 24212.58289 | S24: 24251.90845 | T24: 23716.41 | U24: 21972.23379 | V24: 22011.55935 | W24: 21519.99 | X24: 29362.62564 | Y24: 29401.9512 | Z24: 28765.48 | AB24: 16852.07156 | AC24: 16852.07156 | AD24: 0 | AE24: 0 | AF24: 0 | AG24: 0 | AH24: 0 | AI24: 0 | AJ24: 0 | AK24: 0 | AL24: 3816 | AM24: 0 | AN24: 0 | AO24: 0.81 | AP24: 0 | AQ24: 0 | AR24: 0.6231884058 | AS24: 0 | AT24: 0 | AU24: 0 | AV24: 0 | AW24: 0 | AX24: 0 | AY24: 0 | AZ24: 0 | BA24: 0 | BB24: 0 | BC24: 0 | BD24: 0 | BE24: 0 | BF24: 0 | BG24: 0 | BH24: 0 | BI24: 0 | BJ24: 0 | BK24: 0 | BL24: 10260.5602 | BM24: 16804.72122 | BN24: 14608.30053 | BO24: 21853.78274 | BP24: 16804.72122 | BQ24: 6911.693058 | BR24: 0 | BS24: 0 | BT24: 0 | BU24: 0 | BV24: 0 | BW24: 10465.7714 | BX24: 17140.81564 | BY24: 14900.46654 | BZ24: 22290.85839 | CA24: 17140.81564 | CB24: 7094.70716 | CC24: 0 | CD24: 0 | CE24: 0 | CF24: 0 | CG24: 0
B25: 7069 | C25: The Wyvern School | D25: 303 | E25: 308 | F25: 47 | G25: 44 | H25: 0 | I25: 0 | J25: 0 | K25: 0 | L25: 12502.26224 | M25: 12506.40741 | N25: 12380.58 | O25: 19991.21565 | P25: 19995.36082 | Q25: 19651.72 | R25: 19177.30648 | S25: 19181.45165 | T25: 18860.89 | U25: 16936.95738 | V25: 16941.10255 | W25: 16684.06 | X25: 24327.34923 | Y25: 24331.4944 | Z25: 23901.78 | AB25: 17665.98073 | AC25: 16852.07156 | AD25: 0 | AE25: 0 | AF25: 0 | AG25: 0 | AH25: 0 | AI25: 0 | AJ25: 0 | AK25: 0 | AL25: 6156 | AM25: 0 | AN25: 0 | AO25: 7.6 | AP25: 0 | AQ25: 1 | AR25: 0.3801369863 | AS25: 0 | AT25: 3 | AU25: 0 | AV25: 0 | AW25: 0 | AX25: 0 | AY25: 0 | AZ25: 0 | BA25: 0 | BB25: 0 | BC25: 0 | BD25: 0 | BE25: 0 | BF25: 0 | BG25: 0 | BH25: 0 | BI25: 0 | BJ25: 0 | BK25: 5 | BL25: 10260.5602 | BM25: 16804.72122 | BN25: 14608.30053 | BO25: 21853.78274 | BP25: 17602.67138 | BQ25: 2047.997517 | BR25: 72.02411489 | BS25: 8.171266693 | BT25: 27.76195207 | BU25: 0 | BV25: 1.051098413 | BW25: 10465.7714 | BX25: 17140.81564 | BY25: 14900.46654 | BZ25: 22290.85839 | CA25: 17954.72481 | CB25: 2038.908856 | CC25: 0 | CD25: 0 | CE25: 0 | CF25: 0 | CG25: 0
B26: 7070 | C26: Oakley School | D26: 152 | E26: 182 | F26: 60 | G26: 30 | H26: 0 | I26: 0 | J26: 0 | K26: 0 | L26: 13560.32549 | M26: 13565.34167 | N26: 13288.33 | O26: 21049.2789 | P26: 21054.29508 | Q26: 20630.44 | R26: 20235.36972 | S26: 20240.38591 | T26: 19832.49 | U26: 17995.02063 | V26: 18000.03681 | W26: 17636.07 | X26: 25385.41247 | Y26: 25390.42866 | Z26: 24881.55 | AB26: 17665.98073 | AC26: 16852.07156 | AD26: 0 | AE26: 0 | AF26: 0 | AG26: 0 | AH26: 0 | AI26: 0 | AJ26: 0 | AK26: 0 | AL26: 4287 | AM26: 0 | AN26: 0 | AO26: 11.4161 | AP26: 0 | AQ26: 0 | AR26: 0.3855421687 | AS26: 0 | AT26: 0 | AU26: 1 | AV26: 0 | AW26: 0 | AX26: 0 | AY26: 0 | AZ26: 0 | BA26: 0 | BB26: 0 | BC26: 0 | BD26: 0 | BE26: 0 | BF26: 0 | BG26: 0 | BH26: 0 | BI26: 0 | BJ26: 0 | BK26: 12 | BL26: 10260.5602 | BM26: 16804.72122 | BN26: 14608.30053 | BO26: 21853.78274 | BP26: 17602.67138 | BQ26: 3027.765188 | BR26: 0 | BS26: 0 | BT26: 0 | BU26: 0 | BV26: 0 | BW26: 10465.7714 | BX26: 17140.81564 | BY26: 14900.46654 | BZ26: 22290.85839 | CA26: 17954.72481 | CB26: 3097.48019 | CC26: 0 | CD26: 0 | CE26: 0 | CF26: 0 | CG26: 0
B27: 7072 | C27: Meadowfield School | D27: 346 | E27: 326 | F27: 45 | G27: 63 | H27: 0 | I27: 0 | J27: 0 | K27: 0 | L27: 12588.20888 | M27: 12620.57322 | N27: 12434.13 | O27: 20077.16229 | P27: 20109.52663 | Q27: 19776.24 | R27: 19263.25312 | S27: 19295.61746 | T27: 18978.29 | U27: 17022.90402 | V27: 17055.26836 | W27: 16781.87 | X27: 24413.29587 | Y27: 24445.66021 | Z27: 24027.35 | AB27: 17665.98073 | AC27: 16852.07156 | AD27: 0 | AE27: 0 | AF27: 0 | AG27: 0 | AH27: 0 | AI27: 0 | AJ27: 0 | AK27: 0 | AL27: 8934.58 | AM27: 0 | AN27: 0 | AO27: 2.563 | AP27: 13000 | AQ27: 1 | AR27: 0.4651898734 | AS27: 0 | AT27: 2 | AU27: 0 | AV27: 0 | AW27: 0 | AX27: 0 | AY27: 0 | AZ27: 0 | BA27: 0 | BB27: 0 | BC27: 0 | BD27: 0 | BE27: 0 | BF27: 0 | BG27: 0 | BH27: 0 | BI27: 0 | BJ27: 0 | BK27: 6 | BL27: 10260.5602 | BM27: 16804.72122 | BN27: 14608.30053 | BO27: 21853.78274 | BP27: 17602.67138 | BQ27: 2173.570285 | BR27: 0 | BS27: 0 | BT27: 0 | BU27: 0 | BV27: 0 | BW27: 10465.7714 | BX27: 17140.81564 | BY27: 14900.46654 | BZ27: 22290.85839 | CA27: 17954.72481 | CB27: 2141.316676 | CC27: 0 | CD27: 0 | CE27: 0 | CF27: 0 | CG27: 0
B28: 7073 | C28: Laleham Gap School | D28: 192 | E28: 193 | F28: 15 | G28: 14 | H28: 0 | I28: 0 | J28: 0 | K28: 0 | L28: 13433.16176 | M28: 13400.48782 | N28: 13243.81 | O28: 20922.11517 | P28: 20889.44123 | Q28: 20585.92 | R28: 20108.206 | S28: 20075.53206 | T28: 19787.97 | U28: 17867.8569 | V28: 17835.18296 | W28: 17591.55 | X28: 25258.24875 | Y28: 25225.57481 | Z28: 24837.03 | AB28: 17665.98073 | AC28: 16852.07156 | AD28: 0 | AE28: 0 | AF28: 0 | AG28: 0 | AH28: 0 | AI28: 0 | AJ28: 0 | AK28: 0 | AL28: 4885 | AM28: 0 | AN28: 0 | AO28: 2.5697 | AP28: 0 | AQ28: 0 | AR28: 0.2378640777 | AS28: 0 | AT28: 0 | AU28: 0 | AV28: 0 | AW28: 0 | AX28: 0 | AY28: 0 | AZ28: 0 | BA28: 0 | BB28: 0 | BC28: 0 | BD28: 0 | BE28: 0 | BF28: 0 | BG28: 0 | BH28: 0 | BI28: 0 | BJ28: 0 | BK28: 0 | BL28: 10260.5602 | BM28: 16804.72122 | BN28: 14608.30053 | BO28: 21853.78274 | BP28: 17602.67138 | BQ28: 2983.25072 | BR28: 0 | BS28: 0 | BT28: 0 | BU28: 0 | BV28: 0 | BW28: 10465.7714 | BX28: 17140.81564 | BY28: 14900.46654 | BZ28: 22290.85839 | CA28: 17954.72481 | CB28: 2948.330562 | CC28: 0 | CD28: 0 | CE28: 0 | CF28: 0 | CG28: 0

Sheet Firing Range (hidden)
A1: =COUNTIF(B1:AT1,">0")-22 -> 22 | C1: 7032 | D1: =COUNTIF(D2:D108,">0") -> 20 | E1: 7033 | F1: =COUNTIF(F2:F108,">0") -> 20 | G1: 7044 | H1: =COUNTIF(H2:H108,">0") -> 18 | I1: 7045 | J1: =COUNTIF(J2:J108,">0") -> 20 | K1: 7062 | L1: =COUNTIF(L2:L108,">0") -> 16 | M1: 7041 | N1: =COUNTIF(N2:N108,">0") -> 20 | O1: 7067 | P1: =COUNTIF(P2:P108,">0") -> 20 | Q1: 7021 | R1: =COUNTIF(R2:R108,">0") -> 28 | S1: 7002 | T1: =COUNTIF(T2:T108,">0") -> 19 | U1: 7052 | V1: =COUNTIF(V2:V108,">0") -> 15 | W1: 7058 | X1: =COUNTIF(X2:X108,">0") -> 23 | Y1: 7073 | Z1: =COUNTIF(Z2:Z108,">0") -> 20 | AA1: 7039 | AB1: =COUNTIF(AB2:AB108,">0") -> 21 | AC1: 7040 | AD1: =COUNTIF(AD2:AD108,">0") -> 21 | AE1: 7043 | AF1: =COUNTIF(AF2:AF108,">0") -> 21 | AG1: 7051 | AH1: =COUNTIF(AH2:AH108,">0") -> 20 | AI1: 7056 | AJ1: =COUNTIF(AJ2:AJ108,">0") -> 21 | AK1: 7063 | AL1: =COUNTIF(AL2:AL108,">0") -> 21 | AM1: 7066 | AN1: =COUNTIF(AN2:AN108,">0") -> 21 | AO1: 7069 | AP1: =COUNTIF(AP2:AP108,">0") -> 21 | AQ1: 7070 | AR1: =COUNTIF(AR2:AR108,">0") -> 21 | AS1: 7072 | AT1: =COUNTIF(AT2:AT108,">0") -> 21 | AU1: 7005 | AV1: =COUNTIF(AV2:AV108,">0") -> 20 | AW1: 7006 | AX1: =COUNTIF(AX2:AX108,">0") -> 15
A2: DFENUM | B2: ='Special Rates 2024-25'!DFENUM -> 0 | C2: 7032 | D2: =IF(C2=C1,0,1) -> 0 | E2: 7033 | F2: =IF(E2=E1,0,1) -> 0 | G2: 7044 | H2: =IF(G2=G1,0,1) -> 0 | I2: 7045 | J2: =IF(I2=I1,0,1) -> 0 | K2: 7062 | L2: =IF(K2=K1,0,1) -> 0 | M2: 7041 | N2: =IF(M2=M1,0,1) -> 0 | O2: 7067 | P2: =IF(O2=O1,0,1) -> 0 | Q2: 7021 | R2: =IF(Q2=Q1,0,1) -> 0 | S2: 7002 | T2: =IF(S2=S1,0,1) -> 0 | U2: 7052 | V2: =IF(U2=U1,0,1) -> 0 | W2: 7058 | X2: =IF(W2=W1,0,1) -> 0 | Y2: 7073 | Z2: =IF(Y2=Y1,0,1) -> 0 | AA2: 7039 | AB2: =IF(AA2=AA1,0,1) -> 0 | AC2: 7040 | AD2: =IF(AC2=AC1,0,1) -> 0 | AE2: 7043 | AF2: =IF(AE2=AE1,0,1) -> 0 | AG2: 7051 | AH2: =IF(AG2=AG1,0,1) -> 0 | AI2: 7056 | AJ2: =IF(AI2=AI1,0,1) -> 0 | AK2: 7063 | AL2: =IF(AK2=AK1,0,1) -> 0 | AM2: 7066 | AN2: =IF(AM2=AM1,0,1) -> 0 | AO2: 7069 | AP2: =IF(AO2=AO1,0,1) -> 0 | AQ2: 7070 | AR2: =IF(AQ2=AQ1,0,1) -> 0 | AS2: 7072 | AT2: =IF(AS2=AS1,0,1) -> 0 | AU2: 7005 | AV2: =IF(AU2=AU1,0,1) -> 0 | AW2: 7006 | AX2: =IF(AW2=AW1,0,1) -> 0
A3: NAME | B3: =[0]!NAME ->  | C3: Bower Grove School | D3: 0 | E3: St Anthony's School | F3: 0 | G3: Rowhill School | H3: 0 | I3: Elms School | J3: 0 | K3: The Orchard School | L3: 0 | M3: Goldwyn School | N3: 0 | O3: Portal House School | P3: 0 | Q3: Valence School | R3: 0 | S3: Broomhill Bank School | T3: 0 | U3: Grange Park School | V3: 0 | W3: Stone Bay School | X3: 0 | Y3: Laleham Gap School | Z3: 0 | AA3: The Ifield School | AB3: 0 | AC3: Foreland Fields School | AD3: 0 | AE3: The Beacon Folkestone | AF3: 0 | AG3: Nexus School | AH3: 0 | AI3: Five Acre Wood School | AJ3: 0 | AK3: St Nicholas' School | AL3: 0 | AM3: Milestone Academy | AN3: 0 | AO3: The Wyvern School | AP3: 0 | AQ3: Oakley School | AR3: 0 | AS3: Meadowfield School | AT3: 0 | AU3: Aspire School | AV3: 0 | AW3: Snowfields Academy | AX3: 0
A4: preold | B4: =[0]!preold -> 0 | C4: 225 | D4: 0 | E4: 106 | F4: 0 | G4: 132 | H4: 0 | I4: 152 | J4: 0 | K4: 100 | L4: 0 | M4: 160 | N4: 0 | O4: 80 | P4: 0 | Q4: 80 | R4: 0 | S4: 269 | T4: 0 | U4: 95 | V4: 0 | W4: 92 | X4: 0 | Y4: 192 | Z4: 0 | AA4: 227 | AB4: 0 | AC4: 213 | AD4: 0 | AE4: 278 | AF4: 0 | AG4: 256 | AH4: 0 | AI4: 648 | AJ4: 0 | AK4: 311 | AL4: 0 | AM4: 326 | AN4: 0 | AO4: 303 | AP4: 0 | AQ4: 152 | AR4: 0 | AS4: 346 | AT4: 0 | AU4: 172 | AV4: 0 | AW4: 238 | AX4: 0
A5: postold | B5: =[0]!postold -> 0 | C5: 0 | D5: 0 | E5: 0 | F5: 0 | G5: 0 | H5: 0 | I5: 0 | J5: 0 | K5: 0 | L5: 0 | M5: 35 | N5: 0 | O5: 0 | P5: 0 | Q5: 30 | R5: 0 | S5: 107 | T5: 0 | U5: 60 | V5: 0 | W5: 11 | X5: 0 | Y5: 15 | Z5: 0 | AA5: 39 | AB5: 0 | AC5: 30 | AD5: 0 | AE5: 130 | AF5: 0 | AG5: 39 | AH5: 0 | AI5: 77 | AJ5: 0 | AK5: 44 | AL5: 0 | AM5: 37 | AN5: 0 | AO5: 47 | AP5: 0 | AQ5: 60 | AR5: 0 | AS5: 45 | AT5: 0 | AU5: 0 | AV5: 0 | AW5: 10 | AX5: 0
A6: weekdayold | B6: =[0]!weekdayold -> 0 | C6: 0 | D6: 0 | E6: 0 | F6: 0 | G6: 0 | H6: 0 | I6: 0 | J6: 0 | K6: 0 | L6: 0 | M6: 0 | N6: 0 | O6: 0 | P6: 0 | Q6: 46 | R6: 0 | S6: 23 | T6: 0 | U6: 0 | V6: 0 | W6: 10 | X6: 0 | Y6: 0 | Z6: 0 | AA6: 0 | AB6: 0 | AC6: 0 | AD6: 0 | AE6: 0 | AF6: 0 | AG6: 0 | AH6: 0 | AI6: 0 | AJ6: 0 | AK6: 0 | AL6: 0 | AM6: 0 | AN6: 0 | AO6: 0 | AP6: 0 | AQ6: 0 | AR6: 0 | AS6: 0 | AT6: 0 | AU6: 0 | AV6: 0 | AW6: 0 | AX6: 0
A7: weekendold | B7: =[0]!weekendold -> 0 | C7: 0 | D7: 0 | E7: 0 | F7: 0 | G7: 0 | H7: 0 | I7: 0 | J7: 0 | K7: 0 | L7: 0 | M7: 0 | N7: 0 | O7: 0 | P7: 0 | Q7: 18 | R7: 0 | S7: 0 | T7: 0 | U7: 0 | V7: 0 | W7: 0 | X7: 0 | Y7: 0 | Z7: 0 | AA7: 0 | AB7: 0 | AC7: 0 | AD7: 0 | AE7: 0 | AF7: 0 | AG7: 0 | AH7: 0 | AI7: 0 | AJ7: 0 | AK7: 0 | AL7: 0 | AM7: 0 | AN7: 0 | AO7: 0 | AP7: 0 | AQ7: 0 | AR7: 0 | AS7: 0 | AT7: 0 | AU7: 0 | AV7: 0 | AW7: 0 | AX7: 0
A8: prenew | B8: =[0]!prenew -> 0 | C8: 225 | D8: 0 | E8: 98 | F8: 0 | G8: 150 | H8: 0 | I8: 152 | J8: 0 | K8: 100 | L8: 0 | M8: 160 | N8: 0 | O8: 80 | P8: 0 | Q8: 85 | R8: 0 | S8: 280 | T8: 0 | U8: 136 | V8: 0 | W8: 95 | X8: 0 | Y8: 193 | Z8: 0 | AA8: 221 | AB8: 0 | AC8: 210 | AD8: 0 | AE8: 324 | AF8: 0 | AG8: 256 | AH8: 0 | AI8: 728 | AJ8: 0 | AK8: 297 | AL8: 0 | AM8: 288 | AN8: 0 | AO8: 308 | AP8: 0 | AQ8: 182 | AR8: 0 | AS8: 326 | AT8: 0 | AU8: 174 | AV8: 0 | AW8: 276 | AX8: 0
A9: postnew | B9: =[0]!postnew -> 0 | C9: 0 | D9: 0 | E9: 0 | F9: 0 | G9: 0 | H9: 0 | I9: 0 | J9: 0 | K9: 0 | L9: 0 | M9: 35 | N9: 0 | O9: 0 | P9: 0 | Q9: 30 | R9: 0 | S9: 113 | T9: 0 | U9: 75 | V9: 0 | W9: 8 | X9: 0 | Y9: 14 | Z9: 0 | AA9: 45 | AB9: 0 | AC9: 34 | AD9: 0 | AE9: 84 | AF9: 0 | AG9: 39 | AH9: 0 | AI9: 110 | AJ9: 0 | AK9: 43 | AL9: 0 | AM9: 75 | AN9: 0 | AO9: 44 | AP9: 0 | AQ9: 30 | AR9: 0 | AS9: 63 | AT9: 0 | AU9: 0 | AV9: 0 | AW9: 48 | AX9: 0
A10: weekdaynew | B10: =[0]!weekdaynew -> 0 | C10: 0 | D10: 0 | E10: 0 | F10: 0 | G10: 0 | H10: 0 | I10: 0 | J10: 0 | K10: 0 | L10: 0 | M10: 0 | N10: 0 | O10: 0 | P10: 0 | Q10: 46 | R10: 0 | S10: 23 | T10: 0 | U10: 0 | V10: 0 | W10: 10 | X10: 0 | Y10: 0 | Z10: 0 | AA10: 0 | AB10: 0 | AC10: 0 | AD10: 0 | AE10: 0 | AF10: 0 | AG10: 0 | AH10: 0 | AI10: 0 | AJ10: 0 | AK10: 0 | AL10: 0 | AM10: 0 | AN10: 0 | AO10: 0 | AP10: 0 | AQ10: 0 | AR10: 0 | AS10: 0 | AT10: 0 | AU10: 0 | AV10: 0 | AW10: 0 | AX10: 0
A11: weekendnew | B11: =[0]!weekendnew -> 0 | C11: 0 | D11: 0 | E11: 0 | F11: 0 | G11: 0 | H11: 0 | I11: 0 | J11: 0 | K11: 0 | L11: 0 | M11: 0 | N11: 0 | O11: 0 | P11: 0 | Q11: 18 | R11: 0 | S11: 0 | T11: 0 | U11: 0 | V11: 0 | W11: 0 | X11: 0 | Y11: 0 | Z11: 0 | AA11: 0 | AB11: 0 | AC11: 0 | AD11: 0 | AE11: 0 | AF11: 0 | AG11: 0 | AH11: 0 | AI11: 0 | AJ11: 0 | AK11: 0 | AL11: 0 | AM11: 0 | AN11: 0 | AO11: 0 | AP11: 0 | AQ11: 0 | AR11: 0 | AS11: 0 | AT11: 0 | AU11: 0 | AV11: 0 | AW11: 0 | AX11: 0
A12: mldold | B12: =[0]!mldold -> 0 | C12: 13127.34755 | D12: 1 | E12: 15742.59175 | F12: 1 | G12: 15037.60338 | H12: 1 | I12: 14070.896 | J12: 1 | K12: 15651.5731 | L12: 1 | M12: 14272.48029 | N12: 1 | O12: 17365.602 | P12: 1 | Q12: 17394.493 | R12: 1 | S12: 12804.8672 | T12: 1 | U12: 13798.35974 | V12: 1 | W12: 15454.47886 | X12: 1 | Y12: 13301.4641 | Z12: 1 | AA12: 12983.30837 | AB12: 1 | AC12: 13239.86924 | AD12: 1 | AE12: 12468.8126 | AF12: 1 | AG12: 12925.80731 | AH12: 1 | AI12: 11680.12377 | AJ12: 1 | AK12: 12936.50966 | AL12: 1 | AM12: 12887.72928 | AN12: 1 | AO12: 12379.69104 | AP12: 1 | AQ12: 13427.38112 | AR12: 1 | AS12: 12465.12103 | AT12: 1 | AU12: 13559.26385 | AV12: 1 | AW12: 13424.02228 | AX12: 1
A13: besdold | B13: =[0]!besdold -> 0 | C13: 19736.95018 | D13: 1 | E13: 22352.19438 | F13: 1 | G13: 21708.11389 | H13: 1 | I13: 20680.49862 | J13: 1 | K13: 22261.17572 | L13: 1 | M13: 20882.08292 | N13: 1 | O13: 23975.20462 | P13: 1 | Q13: 24056.47647 | R13: 1 | S13: 19430.4396 | T13: 1 | U13: 20407.96237 | V13: 1 | W13: 22064.08149 | X13: 1 | Y13: 19911.06672 | Z13: 1 | AA13: 19592.911 | AB13: 1 | AC13: 19849.47187 | AD13: 1 | AE13: 19078.41523 | AF13: 1 | AG13: 19535.40993 | AH13: 1 | AI13: 18289.7264 | AJ13: 1 | AK13: 19546.11229 | AL13: 1 | AM13: 19549.71275 | AN13: 1 | AO13: 18989.29367 | AP13: 1 | AQ13: 20036.98375 | AR13: 1 | AS13: 19074.72366 | AT13: 1 | AU13: 20168.86648 | AV13: 1 | AW13: 20033.62491 | AX13: 1
A14: sldold | B14: =[0]!sldold -> 0 | C14: 17518.56529 | D14: 1 | E14: 20133.80949 | F14: 1 | G14: 19514.15011 | H14: 1 | I14: 18462.11373 | J14: 1 | K14: 20042.79083 | L14: 1 | M14: 18663.69803 | N14: 1 | O14: 21756.81973 | P14: 1 | Q14: 21871.03973 | R14: 1 | S14: 17222.09988 | T14: 1 | U14: 18189.57748 | V14: 1 | W14: 19845.69659 | X14: 1 | Y14: 17692.68183 | Z14: 1 | AA14: 17374.5261 | AB14: 1 | AC14: 17631.08698 | AD14: 1 | AE14: 16860.03033 | AF14: 1 | AG14: 17317.02504 | AH14: 1 | AI14: 16071.34151 | AJ14: 1 | AK14: 17327.72739 | AL14: 1 | AM14: 17364.27601 | AN14: 1 | AO14: 16770.90878 | AP14: 1 | AQ14: 17818.59885 | AR14: 1 | AS14: 16856.33877 | AT14: 1 | AU14: 17950.48159 | AV14: 1 | AW14: 17815.24002 | AX14: 1
A15: pdold | B15: =[0]!pdold -> 0 | C15: 24836.50232 | D15: 1 | E15: 27451.74651 | F15: 1 | G15: 26974.19805 | H15: 1 | I15: 25780.05076 | J15: 1 | K15: 27360.72786 | L15: 1 | M15: 25981.63505 | N15: 1 | O15: 29074.75676 | P15: 1 | Q15: 29331.08767 | R15: 1 | S15: 24583.3634 | T15: 1 | U15: 25507.51451 | V15: 1 | W15: 27163.63362 | X15: 1 | Y15: 25010.61886 | Z15: 1 | AA15: 24692.46313 | AB15: 1 | AC15: 24949.02401 | AD15: 1 | AE15: 24177.96736 | AF15: 1 | AG15: 24634.96207 | AH15: 1 | AI15: 23389.27854 | AJ15: 1 | AK15: 24645.66442 | AL15: 1 | AM15: 24824.32396 | AN15: 1 | AO15: 24088.84581 | AP15: 1 | AQ15: 25136.53588 | AR15: 1 | AS15: 24174.27579 | AT15: 1 | AU15: 25268.41862 | AV15: 1 | AW15: 25133.17704 | AX15: 1
A16: asdold | B16: =[0]!asdold -> 0 | C16: 19736.95018 | D16: 1 | E16: 22352.19438 | F16: 1 | G16: 21782.16452 | H16: 1 | I16: 20680.49862 | J16: 1 | K16: 22261.17572 | L16: 1 | M16: 20882.08292 | N16: 1 | O16: 23975.20462 | P16: 1 | Q16: 24139.05414 | R16: 1 | S16: 20266.11623 | T16: 1 | U16: 21213.89204 | V16: 1 | W16: 30123.37818 | X16: 1 | Y16: 20716.99639 | Z16: 1 | AA16: 20398.84067 | AB16: 1 | AC16: 20655.40154 | AD16: 1 | AE16: 19884.3449 | AF16: 1 | AG16: 20341.3396 | AH16: 1 | AI16: 19095.65607 | AJ16: 1 | AK16: 20352.04196 | AL16: 1 | AM16: 20453.21245 | AN16: 1 | AO16: 19795.22334 | AP16: 1 | AQ16: 20842.91342 | AR16: 1 | AS16: 19880.65333 | AT16: 1 | AU16: 20974.79615 | AV16: 1 | AW16: 20839.55458 | AX16: 1
A17: pdweekdayold | B17: =[0]!pdweekdayold -> 0 | C17: 0 | D17: 0 | E17: 0 | F17: 0 | G17: 0 | H17: 0 | I17: 0 | J17: 0 | K17: 0 | L17: 0 | M17: 0 | N17: 0 | O17: 0 | P17: 0 | Q17: 81961.15029 | R17: 1 | S17: 0 | T17: 0 | U17: 0 | V17: 0 | W17: 89945.85917 | X17: 1 | Y17: 0 | Z17: 0 | AA17: 0 | AB17: 0 | AC17: 0 | AD17: 0 | AE17: 0 | AF17: 0 | AG17: 0 | AH17: 0 | AI17: 0 | AJ17: 0 | AK17: 0 | AL17: 0 | AM17: 0 | AN17: 0 | AO17: 0 | AP17: 0 | AQ17: 0 | AR17: 0 | AS17: 0 | AT17: 0 | AU17: 0 | AV17: 0 | AW17: 0 | AX17: 0
A18: asdweekdayold | B18: =[0]!asdweekdayold -> 0 | C18: 0 | D18: 0 | E18: 0 | F18: 0 | G18: 0 | H18: 0 | I18: 0 | J18: 0 | K18: 0 | L18: 0 | M18: 0 | N18: 0 | O18: 0 | P18: 0 | Q18: 0 | R18: 0 | S18: 60392.65736 | T18: 1 | U18: 0 | V18: 0 | W18: 92905.60374 | X18: 1 | Y18: 0 | Z18: 0 | AA18: 0 | AB18: 0 | AC18: 0 | AD18: 0 | AE18: 0 | AF18: 0 | AG18: 0 | AH18: 0 | AI18: 0 | AJ18: 0 | AK18: 0 | AL18: 0 | AM18: 0 | AN18: 0 | AO18: 0 | AP18: 0 | AQ18: 0 | AR18: 0 | AS18: 0 | AT18: 0 | AU18: 0 | AV18: 0 | AW18: 0 | AX18: 0
A19: pdweekendold | B19: =[0]!pdweekendold -> 0 | C19: 0 | D19: 0 | E19: 0 | F19: 0 | G19: 0 | H19: 0 | I19: 0 | J19: 0 | K19: 0 | L19: 0 | M19: 0 | N19: 0 | O19: 0 | P19: 0 | Q19: 110399.8001 | R19: 1 | S19: 0 | T19: 0 | U19: 0 | V19: 0 | W19: 0 | X19: 0 | Y19: 0 | Z19: 0 | AA19: 0 | AB19: 0 | AC19: 0 | AD19: 0 | AE19: 0 | AF19: 0 | AG19: 0 | AH19: 0 | AI19: 0 | AJ19: 0 | AK19: 0 | AL19: 0 | AM19: 0 | AN19: 0 | AO19: 0 | AP19: 0 | AQ19: 0 | AR19: 0 | AS19: 0 | AT19: 0 | AU19: 0 | AV19: 0 | AW19: 0 | AX19: 0
A20: mldnew | B20: =[0]!mldnew -> 0 | C20: 13157.65052 | D20: 1 | E20: 16153.30631 | F20: 1 | G20: 14536.02833 | H20: 1 | I20: 14081.63396 | J20: 1 | K20: 15653.33942 | L20: 1 | M20: 14950.62466 | N20: 1 | O20: 17404.54202 | P20: 1 | Q20: 17132.95091 | R20: 1 | S20: 12815.23803 | T20: 1 | U20: 12923.16007 | V20: 1 | W20: 15473.2302 | X20: 1 | Y20: 13269.11049 | Z20: 1 | AA20: 13016.3311 | AB20: 1 | AC20: 13269.9953 | AD20: 1 | AE20: 12608.13186 | AF20: 1 | AG20: 12942.25361 | AH20: 1 | AI20: 11564.77184 | AJ20: 1 | AK20: 13064.06305 | AL20: 1 | AM20: 12896.53733 | AN20: 1 | AO20: 12383.79558 | AP20: 1 | AQ20: 13432.34812 | AR20: 1 | AS20: 12497.16975 | AT20: 1 | AU20: 13538.87559 | AV20: 1 | AW20: 12749.2822 | AX20: 1
A21: besdnew | B21: =[0]!besdnew -> 0 | C21: 19767.25315 | D21: 1 | E21: 22762.90894 | F21: 1 | G21: 21206.53884 | H21: 1 | I21: 20691.23659 | J21: 1 | K21: 22262.94205 | L21: 1 | M21: 21560.22729 | N21: 1 | O21: 24014.14464 | P21: 1 | Q21: 23794.93438 | R21: 1 | S21: 19440.81043 | T21: 1 | U21: 19532.76269 | V21: 1 | W21: 22082.83283 | X21: 1 | Y21: 19878.71312 | Z21: 1 | AA21: 19625.93373 | AB21: 1 | AC21: 19879.59793 | AD21: 1 | AE21: 19217.73449 | AF21: 1 | AG21: 19551.85624 | AH21: 1 | AI21: 18174.37447 | AJ21: 1 | AK21: 19673.66568 | AL21: 1 | AM21: 19558.5208 | AN21: 1 | AO21: 18993.3982 | AP21: 1 | AQ21: 20041.95075 | AR21: 1 | AS21: 19106.77237 | AT21: 1 | AU21: 20148.47822 | AV21: 1 | AW21: 19358.88483 | AX21: 1
A22: sldnew | B22: =[0]!sldnew -> 0 | C22: 17548.86826 | D22: 1 | E22: 20544.52404 | F22: 1 | G22: 19012.57506 | H22: 1 | I22: 18472.8517 | J22: 1 | K22: 20044.55716 | L22: 1 | M22: 19341.84239 | N22: 1 | O22: 21795.75975 | P22: 1 | Q22: 21609.49764 | R22: 1 | S22: 17232.47071 | T22: 1 | U22: 17314.3778 | V22: 1 | W22: 19864.44794 | X22: 1 | Y22: 17660.32823 | Z22: 1 | AA22: 17407.54884 | AB22: 1 | AC22: 17661.21303 | AD22: 1 | AE22: 16999.3496 | AF22: 1 | AG22: 17333.47135 | AH22: 1 | AI22: 15955.98958 | AJ22: 1 | AK22: 17455.28078 | AL22: 1 | AM22: 17373.08406 | AN22: 1 | AO22: 16775.01331 | AP22: 1 | AQ22: 17823.56586 | AR22: 1 | AS22: 16888.38748 | AT22: 1 | AU22: 17930.09333 | AV22: 1 | AW22: 17140.49994 | AX22: 1
A23: pdnew | B23: =[0]!pdnew -> 0 | C23: 24866.80529 | D23: 1 | E23: 27862.46107 | F23: 1 | G23: 26472.623 | H23: 1 | I23: 25790.78873 | J23: 1 | K23: 27362.49418 | L23: 1 | M23: 26659.77942 | N23: 1 | O23: 29113.69678 | P23: 1 | Q23: 29069.54558 | R23: 1 | S23: 24593.73423 | T23: 1 | U23: 24632.31483 | V23: 1 | W23: 27182.38497 | X23: 1 | Y23: 24978.26526 | Z23: 1 | AA23: 24725.48586 | AB23: 1 | AC23: 24979.15006 | AD23: 1 | AE23: 24317.28663 | AF23: 1 | AG23: 24651.40837 | AH23: 1 | AI23: 23273.9266 | AJ23: 1 | AK23: 24773.21781 | AL23: 1 | AM23: 24833.13201 | AN23: 1 | AO23: 24092.95034 | AP23: 1 | AQ23: 25141.50288 | AR23: 1 | AS23: 24206.32451 | AT23: 1 | AU23: 25248.03036 | AV23: 1 | AW23: 24458.43697 | AX23: 1
A24: asdnew | B24: =[0]!asdnew -> 0 | C24: 19767.25315 | D24: 1 | E24: 22762.90894 | F24: 1 | G24: 21280.58947 | H24: 1 | I24: 20691.23659 | J24: 1 | K24: 22262.94205 | L24: 1 | M24: 21560.22729 | N24: 1 | O24: 24014.14464 | P24: 1 | Q24: 23877.51205 | R24: 1 | S24: 20276.48706 | T24: 1 | U24: 20338.69236 | V24: 1 | W24: 30142.12953 | X24: 1 | Y24: 20684.64279 | Z24: 1 | AA24: 20431.8634 | AB24: 1 | AC24: 20685.5276 | AD24: 1 | AE24: 20023.66416 | AF24: 1 | AG24: 20357.78591 | AH24: 1 | AI24: 18980.30414 | AJ24: 1 | AK24: 20479.59535 | AL24: 1 | AM24: 20462.0205 | AN24: 1 | AO24: 19799.32787 | AP24: 1 | AQ24: 20847.88042 | AR24: 1 | AS24: 19912.70204 | AT24: 1 | AU24: 20954.40789 | AV24: 1 | AW24: 20164.8145 | AX24: 1
A25: pdweekdaynew | B25: =[0]!pdweekdaynew -> 0 | C25: 0 | D25: 0 | E25: 0 | F25: 0 | G25: 0 | H25: 0 | I25: 0 | J25: 0 | K25: 0 | L25: 0 | M25: 0 | N25: 0 | O25: 0 | P25: 0 | Q25: 81273.09778 | R25: 1 | S25: 0 | T25: 0 | U25: 0 | V25: 0 | W25: 89625.2746 | X25: 1 | Y25: 0 | Z25: 0 | AA25: 0 | AB25: 0 | AC25: 0 | AD25: 0 | AE25: 0 | AF25: 0 | AG25: 0 | AH25: 0 | AI25: 0 | AJ25: 0 | AK25: 0 | AL25: 0 | AM25: 0 | AN25: 0 | AO25: 0 | AP25: 0 | AQ25: 0 | AR25: 0 | AS25: 0 | AT25: 0 | AU25: 0 | AV25: 0 | AW25: 0 | AX25: 0
A26: asdweekdaynew | B26: =[0]!asdweekdaynew -> 0 | C26: 0 | D26: 0 | E26: 0 | F26: 0 | G26: 0 | H26: 0 | I26: 0 | J26: 0 | K26: 0 | L26: 0 | M26: 0 | N26: 0 | O26: 0 | P26: 0 | Q26: 0 | R26: 0 | S26: 60125.3193 | T26: 1 | U26: 0 | V26: 0 | W26: 92585.01916 | X26: 1 | Y26: 0 | Z26: 0 | AA26: 0 | AB26: 0 | AC26: 0 | AD26: 0 | AE26: 0 | AF26: 0 | AG26: 0 | AH26: 0 | AI26: 0 | AJ26: 0 | AK26: 0 | AL26: 0 | AM26: 0 | AN26: 0 | AO26: 0 | AP26: 0 | AQ26: 0 | AR26: 0 | AS26: 0 | AT26: 0 | AU26: 0 | AV26: 0 | AW26: 0 | AX26: 0
A27: pdweekendnew | B27: =[0]!pdweekendnew -> 0 | C27: 0 | D27: 0 | E27: 0 | F27: 0 | G27: 0 | H27: 0 | I27: 0 | J27: 0 | K27: 0 | L27: 0 | M27: 0 | N27: 0 | O27: 0 | P27: 0 | Q27: 109443.2551 | R27: 1 | S27: 0 | T27: 0 | U27: 0 | V27: 0 | W27: 0 | X27: 0 | Y27: 0 | Z27: 0 | AA27: 0 | AB27: 0 | AC27: 0 | AD27: 0 | AE27: 0 | AF27: 0 | AG27: 0 | AH27: 0 | AI27: 0 | AJ27: 0 | AK27: 0 | AL27: 0 | AM27: 0 | AN27: 0 | AO27: 0 | AP27: 0 | AQ27: 0 | AR27: 0 | AS27: 0 | AT27: 0 | AU27: 0 | AV27: 0 | AW27: 0 | AX27: 0
A28: mldyear | B28: =[0]!mldyear -> 0 | C28: 13145.02429 | D28: 1 | E28: 15982.17524 | F28: 1 | G28: 14745.01794 | H28: 1 | I28: 14077.15981 | J28: 1 | K28: 15652.60345 | L28: 1 | M28: 14668.0645 | N28: 1 | O28: 17388.31701 | P28: 1 | Q28: 17241.92678 | R28: 1 | S28: 12810.91685 | T28: 1 | U28: 13287.8266 | V28: 1 | W28: 15465.41714 | X28: 1 | Y28: 13282.59116 | Z28: 1 | AA28: 13002.57163 | AB28: 1 | AC28: 13257.44278 | AD28: 1 | AE28: 12550.08217 | AF28: 1 | AG28: 12935.40098 | AH28: 1 | AI28: 11612.83515 | AJ28: 1 | AK28: 13010.9158 | AL28: 1 | AM28: 12892.86731 | AN28: 1 | AO28: 12382.08535 | AP28: 1 | AQ28: 13430.27854 | AR28: 1 | AS28: 12483.81611 | AT28: 1 | AU28: 13547.3707 | AV28: 1 | AW28: 13030.4239 | AX28: 1
A29: besdyear | B29: =[0]!besdyear -> 0 | C29: 19754.62691 | D29: 1 | E29: 22591.77787 | F29: 1 | G29: 21415.52845 | H29: 1 | I29: 20686.76244 | J29: 1 | K29: 22262.20608 | L29: 1 | M29: 21277.66713 | N29: 1 | O29: 23997.91964 | P29: 1 | Q29: 23903.91025 | R29: 1 | S29: 19436.48925 | T29: 1 | U29: 19897.42923 | V29: 1 | W29: 22075.01977 | X29: 1 | Y29: 19892.19379 | Z29: 1 | AA29: 19612.17426 | AB29: 1 | AC29: 19867.0454 | AD29: 1 | AE29: 19159.6848 | AF29: 1 | AG29: 19545.00361 | AH29: 1 | AI29: 18222.43777 | AJ29: 1 | AK29: 19620.51843 | AL29: 1 | AM29: 19554.85078 | AN29: 1 | AO29: 18991.68798 | AP29: 1 | AQ29: 20039.88117 | AR29: 1 | AS29: 19093.41874 | AT29: 1 | AU29: 20156.97333 | AV29: 1 | AW29: 19640.02653 | AX29: 1
A30: sldyear | B30: =[0]!sldyear -> 0 | C30: 17536.24202 | D30: 1 | E30: 20373.39298 | F30: 1 | G30: 19221.56467 | H30: 1 | I30: 18468.37755 | J30: 1 | K30: 20043.82119 | L30: 1 | M30: 19059.28224 | N30: 1 | O30: 21779.53474 | P30: 1 | Q30: 21718.47351 | R30: 1 | S30: 17228.14953 | T30: 1 | U30: 17679.04433 | V30: 1 | W30: 19856.63488 | X30: 1 | Y30: 17673.8089 | Z30: 1 | AA30: 17393.78937 | AB30: 1 | AC30: 17648.66051 | AD30: 1 | AE30: 16941.29991 | AF30: 1 | AG30: 17326.61872 | AH30: 1 | AI30: 16004.05288 | AJ30: 1 | AK30: 17402.13354 | AL30: 1 | AM30: 17369.41404 | AN30: 1 | AO30: 16773.30309 | AP30: 1 | AQ30: 17821.49627 | AR30: 1 | AS30: 16875.03385 | AT30: 1 | AU30: 17938.58844 | AV30: 1 | AW30: 17421.64164 | AX30: 1
A31: pdyear | B31: =[0]!pdyear -> 0 | C31: 24854.17905 | D31: 1 | E31: 27691.33001 | F31: 1 | G31: 26681.61261 | H31: 1 | I31: 25786.31457 | J31: 1 | K31: 27361.75821 | L31: 1 | M31: 26377.21927 | N31: 1 | O31: 29097.47177 | P31: 1 | Q31: 29178.52145 | R31: 1 | S31: 24589.41305 | T31: 1 | U31: 24996.98136 | V31: 1 | W31: 27174.5719 | X31: 1 | Y31: 24991.74592 | Z31: 1 | AA31: 24711.72639 | AB31: 1 | AC31: 24966.59754 | AD31: 1 | AE31: 24259.23693 | AF31: 1 | AG31: 24644.55575 | AH31: 1 | AI31: 23321.98991 | AJ31: 1 | AK31: 24720.07056 | AL31: 1 | AM31: 24829.46199 | AN31: 1 | AO31: 24091.24012 | AP31: 1 | AQ31: 25139.4333 | AR31: 1 | AS31: 24192.97088 | AT31: 1 | AU31: 25256.52547 | AV31: 1 | AW31: 24739.57867 | AX31: 1
A32: asdyear | B32: =[0]!asdyear -> 0 | C32: 19754.62691 | D32: 1 | E32: 22591.77787 | F32: 1 | G32: 21489.57907 | H32: 1 | I32: 20686.76244 | J32: 1 | K32: 22262.20608 | L32: 1 | M32: 21277.66713 | N32: 1 | O32: 23997.91964 | P32: 1 | Q32: 23986.48792 | R32: 1 | S32: 20272.16588 | T32: 1 | U32: 20703.3589 | V32: 1 | W32: 30134.31647 | X32: 1 | Y32: 20698.12346 | Z32: 1 | AA32: 20418.10393 | AB32: 1 | AC32: 20672.97507 | AD32: 1 | AE32: 19965.61447 | AF32: 1 | AG32: 20350.93328 | AH32: 1 | AI32: 19028.36744 | AJ32: 1 | AK32: 20426.4481 | AL32: 1 | AM32: 20458.35048 | AN32: 1 | AO32: 19797.61765 | AP32: 1 | AQ32: 20845.81084 | AR32: 1 | AS32: 19899.34841 | AT32: 1 | AU32: 20962.903 | AV32: 1 | AW32: 20445.9562 | AX32: 1
A33: pdweekdayyear | B33: =[0]!pdweekdayyear -> 0 | C33: 0 | D33: 0 | E33: 0 | F33: 0 | G33: 0 | H33: 0 | I33: 0 | J33: 0 | K33: 0 | L33: 0 | M33: 0 | N33: 0 | O33: 0 | P33: 0 | Q33: 81559.78633 | R33: 1 | S33: 0 | T33: 0 | U33: 0 | V33: 0 | W33: 89758.8515 | X33: 1 | Y33: 0 | Z33: 0 | AA33: 0 | AB33: 0 | AC33: 0 | AD33: 0 | AE33: 0 | AF33: 0 | AG33: 0 | AH33: 0 | AI33: 0 | AJ33: 0 | AK33: 0 | AL33: 0 | AM33: 0 | AN33: 0 | AO33: 0 | AP33: 0 | AQ33: 0 | AR33: 0 | AS33: 0 | AT33: 0 | AU33: 0 | AV33: 0 | AW33: 0 | AX33: 0
A34: asdweekdayyear | B34: =[0]!asdweekdayyear -> 0 | C34: 0 | D34: 0 | E34: 0 | F34: 0 | G34: 0 | H34: 0 | I34: 0 | J34: 0 | K34: 0 | L34: 0 | M34: 0 | N34: 0 | O34: 0 | P34: 0 | Q34: 0 | R34: 0 | S34: 60236.71016 | T34: 1 | U34: 0 | V34: 0 | W34: 92718.59607 | X34: 1 | Y34: 0 | Z34: 0 | AA34: 0 | AB34: 0 | AC34: 0 | AD34: 0 | AE34: 0 | AF34: 0 | AG34: 0 | AH34: 0 | AI34: 0 | AJ34: 0 | AK34: 0 | AL34: 0 | AM34: 0 | AN34: 0 | AO34: 0 | AP34: 0 | AQ34: 0 | AR34: 0 | AS34: 0 | AT34: 0 | AU34: 0 | AV34: 0 | AW34: 0 | AX34: 0
A35: pdweekendyear | B35: =[0]!pdweekendyear -> 0 | C35: 0 | D35: 0 | E35: 0 | F35: 0 | G35: 0 | H35: 0 | I35: 0 | J35: 0 | K35: 0 | L35: 0 | M35: 0 | N35: 0 | O35: 0 | P35: 0 | Q35: 109841.8155 | R35: 1 | S35: 0 | T35: 0 | U35: 0 | V35: 0 | W35: 0 | X35: 0 | Y35: 0 | Z35: 0 | AA35: 0 | AB35: 0 | AC35: 0 | AD35: 0 | AE35: 0 | AF35: 0 | AG35: 0 | AH35: 0 | AI35: 0 | AJ35: 0 | AK35: 0 | AL35: 0 | AM35: 0 | AN35: 0 | AO35: 0 | AP35: 0 | AQ35: 0 | AR35: 0 | AS35: 0 | AT35: 0 | AU35: 0 | AV35: 0 | AW35: 0 | AX35: 0
A36: mldlastyear | B36: =[0]!mldlastyear -> 0 | C36: 12988.56 | D36: 0 | E36: 15632.56 | F36: 0 | G36: 14972.18 | H36: 0 | I36: 13877.16 | J36: 0 | K36: 16044.43 | L36: 0 | M36: 14529.21 | N36: 0 | O36: 17172.25 | P36: 0 | Q36: 17235.91 | R36: 0 | S36: 14965.72 | T36: 0 | U36: 13575.95 | V36: 0 | W36: 17032.5 | X36: 0 | Y36: 13243.81 | Z36: 0 | AA36: 12877.16 | AB36: 0 | AC36: 13116.84 | AD36: 0 | AE36: 12356.34 | AF36: 0 | AG36: 13156.27 | AH36: 0 | AI36: 11645.24 | AJ36: 0 | AK36: 12931.57 | AL36: 0 | AM36: 12758.49 | AN36: 0 | AO36: 12380.58 | AP36: 0 | AQ36: 13288.33 | AR36: 0 | AS36: 12434.13 | AT36: 0 | AU36: 13463.8 | AV36: 0 | AW36: 13927.61 | AX36: 0
A37: besdlastyear | B37: =[0]!besdlastyear -> 0 | C37: 19532.72 | D37: 0 | E37: 22055.98 | F37: 0 | G37: 21491.61 | H37: 0 | I37: 20421.32 | J37: 0 | K37: 22467.86 | L37: 0 | M37: 20670.83 | N37: 0 | O37: 23716.41 | P37: 0 | Q37: 23831.93 | R37: 0 | S37: 19460.6 | T37: 0 | U37: 20120.11 | V37: 0 | W37: 22338.07 | X37: 0 | Y37: 19787.97 | Z37: 0 | AA37: 19421.32 | AB37: 0 | AC37: 19661.01 | AD37: 0 | AE37: 18900.5 | AF37: 0 | AG37: 19443.9 | AH37: 0 | AI37: 18189.4 | AJ37: 0 | AK37: 19365.36 | AL37: 0 | AM37: 19354.51 | AN37: 0 | AO37: 18860.89 | AP37: 0 | AQ37: 19832.49 | AR37: 0 | AS37: 18978.29 | AT37: 0 | AU37: 20007.97 | AV37: 0 | AW37: 20471.77 | AX37: 0
A38: sldlastyear | B38: =[0]!sldlastyear -> 0 | C38: 17336.3 | D38: 0 | E38: 19900.08 | F38: 0 | G38: 19319.37 | H38: 0 | I38: 18224.9 | J38: 0 | K38: 20311.96 | L38: 0 | M38: 18474.41 | N38: 0 | O38: 21519.99 | P38: 0 | Q38: 21668.13 | R38: 0 | S38: 18625.91 | T38: 0 | U38: 17923.69 | V38: 0 | W38: 21016.38 | X38: 0 | Y38: 17591.55 | Z38: 0 | AA38: 17224.9 | AB38: 0 | AC38: 17464.58 | AD38: 0 | AE38: 16704.08 | AF38: 0 | AG38: 17288 | AH38: 0 | AI38: 15992.98 | AJ38: 0 | AK38: 17199.1 | AL38: 0 | AM38: 17190.71 | AN38: 0 | AO38: 16684.06 | AP38: 0 | AQ38: 17636.07 | AR38: 0 | AS38: 16781.87 | AT38: 0 | AU38: 17811.55 | AV38: 0 | AW38: 18275.35 | AX38: 0
A39: pdlastyear | B39: =[0]!pdlastyear -> 0 | C39: 24581.78 | D39: 0 | E39: 27098.77 | F39: 0 | G39: 26705.55 | H39: 0 | I39: 25470.38 | J39: 0 | K39: 27423.77 | L39: 0 | M39: 25719.89 | N39: 0 | O39: 28765.48 | P39: 0 | Q39: 29054.32 | R39: 0 | S39: 24729.9 | T39: 0 | U39: 25169.18 | V39: 0 | W39: 27656.14 | X39: 0 | Y39: 24837.03 | Z39: 0 | AA39: 24470.38 | AB39: 0 | AC39: 24710.07 | AD39: 0 | AE39: 23949.56 | AF39: 0 | AG39: 24455.66 | AH39: 0 | AI39: 23238.46 | AJ39: 0 | AK39: 24414.43 | AL39: 0 | AM39: 24576.9 | AN39: 0 | AO39: 23901.78 | AP39: 0 | AQ39: 24881.55 | AR39: 0 | AS39: 24027.35 | AT39: 0 | AU39: 25057.03 | AV39: 0 | AW39: 25520.84 | AX39: 0
A40: asdlastyear | B40: =[0]!asdlastyear -> 0 | C40: 19532.72 | D40: 0 | E40: 22055.98 | F40: 0 | G40: 21564.93 | H40: 0 | I40: 20421.32 | J40: 0 | K40: 22467.86 | L40: 0 | M40: 20670.83 | N40: 0 | O40: 23716.41 | P40: 0 | Q40: 23913.69 | R40: 0 | S40: 21162.08 | T40: 0 | U40: 20918.06 | V40: 0 | W40: 30448.74 | X40: 0 | Y40: 20585.92 | Z40: 0 | AA40: 20219.27 | AB40: 0 | AC40: 20458.96 | AD40: 0 | AE40: 19698.45 | AF40: 0 | AG40: 20227.13 | AH40: 0 | AI40: 18987.35 | AJ40: 0 | AK40: 20163.31 | AL40: 0 | AM40: 20249.06 | AN40: 0 | AO40: 19651.72 | AP40: 0 | AQ40: 20630.44 | AR40: 0 | AS40: 19776.24 | AT40: 0 | AU40: 20805.92 | AV40: 0 | AW40: 21269.72 | AX40: 0
A41: pdweekdaylastyear | B41: =[0]!pdweekdaylastyear -> 0 | C41: 0 | D41: 0 | E41: 0 | F41: 0 | G41: 0 | H41: 0 | I41: 0 | J41: 0 | K41: 0 | L41: 0 | M41: 0 | N41: 0 | O41: 0 | P41: 0 | Q41: 81163.29 | R41: 0 | S41: 0 | T41: 0 | U41: 0 | V41: 0 | W41: 89111.43 | X41: 0 | Y41: 0 | Z41: 0 | AA41: 0 | AB41: 0 | AC41: 0 | AD41: 0 | AE41: 0 | AF41: 0 | AG41: 0 | AH41: 0 | AI41: 0 | AJ41: 0 | AK41: 0 | AL41: 0 | AM41: 0 | AN41: 0 | AO41: 0 | AP41: 0 | AQ41: 0 | AR41: 0 | AS41: 0 | AT41: 0 | AU41: 0 | AV41: 0 | AW41: 0 | AX41: 0
A42: asdweekdaylastyear | B42: =[0]!asdweekdaylastyear -> 0 | C42: 0 | D42: 0 | E42: 0 | F42: 0 | G42: 0 | H42: 0 | I42: 0 | J42: 0 | K42: 0 | L42: 0 | M42: 0 | N42: 0 | O42: 0 | P42: 0 | Q42: 0 | R42: 0 | S42: 61572.78 | T42: 0 | U42: 0 | V42: 0 | W42: 92041.87 | X42: 0 | Y42: 0 | Z42: 0 | AA42: 0 | AB42: 0 | AC42: 0 | AD42: 0 | AE42: 0 | AF42: 0 | AG42: 0 | AH42: 0 | AI42: 0 | AJ42: 0 | AK42: 0 | AL42: 0 | AM42: 0 | AN42: 0 | AO42: 0 | AP42: 0 | AQ42: 0 | AR42: 0 | AS42: 0 | AT42: 0 | AU42: 0 | AV42: 0 | AW42: 0 | AX42: 0
A43: pdweekendlastyear | B43: =[0]!pdweekendlastyear -> 0 | C43: 0 | D43: 0 | E43: 0 | F43: 0 | G43: 0 | H43: 0 | I43: 0 | J43: 0 | K43: 0 | L43: 0 | M43: 0 | N43: 0 | O43: 0 | P43: 0 | Q43: 109320.37 | R43: 0 | S43: 0 | T43: 0 | U43: 0 | V43: 0 | W43: 0 | X43: 0 | Y43: 0 | Z43: 0 | AA43: 0 | AB43: 0 | AC43: 0 | AD43: 0 | AE43: 0 | AF43: 0 | AG43: 0 | AH43: 0 | AI43: 0 | AJ43: 0 | AK43: 0 | AL43: 0 | AM43: 0 | AN43: 0 | AO43: 0 | AP43: 0 | AQ43: 0 | AR43: 0 | AS43: 0 | AT43: 0 | AU43: 0 | AV43: 0 | AW43: 0 | AX43: 0
A44: MLD&SLCN | B44: =mldfinal -> 0 | C44: 13145.02429 | D44: 1 | E44: 15982.17524 | F44: 1 | G44: 15047.0409 | H44: 0 | I44: 14077.15981 | J44: 1 | K44: 16124.65215 | L44: 0 | M44: 14668.0645 | N44: 1 | O44: 17388.31701 | P44: 1 | Q44: 17322.08955 | R44: 1 | S44: 15040.5486 | T44: 0 | U44: 13643.82975 | V44: 0 | W44: 17117.6625 | X44: 0 | Y44: 13310.02905 | Z44: 1 | AA44: 13002.57163 | AB44: 1 | AC44: 13257.44278 | AD44: 1 | AE44: 12550.08217 | AF44: 1 | AG44: 13222.05135 | AH44: 0 | AI44: 11703.4662 | AJ44: 1 | AK44: 13010.9158 | AL44: 1 | AM44: 12892.86731 | AN44: 1 | AO44: 12442.4829 | AP44: 1 | AQ44: 13430.27854 | AR44: 1 | AS44: 12496.30065 | AT44: 1 | AU44: 13547.3707 | AV44: 1 | AW44: 13997.24805 | AX44: 0
A45: BESD | B45: =besdfinal -> 0 | C45: 19754.62691 | D45: 1 | E45: 22591.77787 | F45: 1 | G45: 21599.06805 | H45: 1 | I45: 20686.76244 | J45: 1 | K45: 22580.1993 | L45: 0 | M45: 21277.66713 | N45: 1 | O45: 23997.91964 | P45: 1 | Q45: 23951.08965 | R45: 1 | S45: 19557.903 | T45: 1 | U45: 20220.71055 | V45: 0 | W45: 22449.76035 | X45: 0 | Y45: 19892.19379 | Z45: 1 | AA45: 19612.17426 | AB45: 1 | AC45: 19867.0454 | AD45: 1 | AE45: 19159.6848 | AF45: 1 | AG45: 19545.00361 | AH45: 1 | AI45: 18280.347 | AJ45: 1 | AK45: 19620.51843 | AL45: 1 | AM45: 19554.85078 | AN45: 1 | AO45: 18991.68798 | AP45: 1 | AQ45: 20039.88117 | AR45: 1 | AS45: 19093.41874 | AT45: 1 | AU45: 20156.97333 | AV45: 1 | AW45: 20574.12885 | AX45: 0
A46: SLD | B46: =sldfinal -> 0 | C46: 17536.24202 | D46: 1 | E46: 20373.39298 | F46: 1 | G46: 19415.96685 | H46: 0 | I46: 18468.37755 | J46: 1 | K46: 20413.5198 | L46: 0 | M46: 19059.28224 | N46: 1 | O46: 21779.53474 | P46: 1 | Q46: 21776.47065 | R46: 1 | S46: 18719.03955 | T46: 0 | U46: 18013.30845 | V46: 0 | W46: 21121.4619 | X46: 0 | Y46: 17679.50775 | Z46: 1 | AA46: 17393.78937 | AB46: 1 | AC46: 17648.66051 | AD46: 1 | AE46: 16941.29991 | AF46: 1 | AG46: 17374.44 | AH46: 1 | AI46: 16072.9449 | AJ46: 1 | AK46: 17402.13354 | AL46: 1 | AM46: 17369.41404 | AN46: 1 | AO46: 16773.30309 | AP46: 1 | AQ46: 17821.49627 | AR46: 1 | AS46: 16875.03385 | AT46: 1 | AU46: 17938.58844 | AV46: 1 | AW46: 18366.72675 | AX46: 0
A47: PD&PMLD | B47: =pdfinal -> 0 | C47: 24854.17905 | D47: 1 | E47: 27691.33001 | F47: 1 | G47: 26839.07775 | H47: 1 | I47: 25786.31457 | J47: 1 | K47: 27560.88885 | L47: 1 | M47: 26377.21927 | N47: 1 | O47: 29097.47177 | P47: 1 | Q47: 29199.5916 | R47: 1 | S47: 24853.5495 | T47: 0 | U47: 25295.0259 | V47: 0 | W47: 27794.4207 | X47: 0 | Y47: 24991.74592 | Z47: 1 | AA47: 24711.72639 | AB47: 1 | AC47: 24966.59754 | AD47: 1 | AE47: 24259.23693 | AF47: 1 | AG47: 24644.55575 | AH47: 1 | AI47: 23354.6523 | AJ47: 1 | AK47: 24720.07056 | AL47: 1 | AM47: 24829.46199 | AN47: 1 | AO47: 24091.24012 | AP47: 1 | AQ47: 25139.4333 | AR47: 1 | AS47: 24192.97088 | AT47: 1 | AU47: 25256.52547 | AV47: 1 | AW47: 25648.4442 | AX47: 0
A48: ASD | B48: =asdfinal -> 0 | C48: 19754.62691 | D48: 1 | E48: 22591.77787 | F48: 1 | G48: 21672.75465 | H48: 1 | I48: 20686.76244 | J48: 1 | K48: 22580.1993 | L48: 0 | M48: 21277.66713 | N48: 1 | O48: 23997.91964 | P48: 1 | Q48: 24033.25845 | R48: 1 | S48: 21267.8904 | T48: 0 | U48: 21022.6503 | V48: 0 | W48: 30600.9837 | X48: 0 | Y48: 20698.12346 | Z48: 1 | AA48: 20418.10393 | AB48: 1 | AC48: 20672.97507 | AD48: 1 | AE48: 19965.61447 | AF48: 1 | AG48: 20350.93328 | AH48: 1 | AI48: 19082.28675 | AJ48: 1 | AK48: 20426.4481 | AL48: 1 | AM48: 20458.35048 | AN48: 1 | AO48: 19797.61765 | AP48: 1 | AQ48: 20845.81084 | AR48: 1 | AS48: 19899.34841 | AT48: 1 | AU48: 20962.903 | AV48: 1 | AW48: 21376.0686 | AX48: 0
A49: WeekdayPD&PMLD | B49: =pd5final -> 0 | C49: 0 | D49: 0 | E49: 0 | F49: 0 | G49: 0 | H49: 0 | I49: 0 | J49: 0 | K49: 0 | L49: 0 | M49: 0 | N49: 0 | O49: 0 | P49: 0 | Q49: 81569.10645 | R49: 1 | S49: 0 | T49: 0 | U49: 0 | V49: 0 | W49: 89758.8515 | X49: 1 | Y49: 0 | Z49: 0 | AA49: 0 | AB49: 0 | AC49: 0 | AD49: 0 | AE49: 0 | AF49: 0 | AG49: 0 | AH49: 0 | AI49: 0 | AJ49: 0 | AK49: 0 | AL49: 0 | AM49: 0 | AN49: 0 | AO49: 0 | AP49: 0 | AQ49: 0 | AR49: 0 | AS49: 0 | AT49: 0 | AU49: 0 | AV49: 0 | AW49: 0 | AX49: 0
A50: WeekdayASD | B50: =asd5final -> 0 | C50: 0 | D50: 0 | E50: 0 | F50: 0 | G50: 0 | H50: 0 | I50: 0 | J50: 0 | K50: 0 | L50: 0 | M50: 0 | N50: 0 | O50: 0 | P50: 0 | Q50: 0 | R50: 0 | S50: 61880.6439 | T50: 0 | U50: 0 | V50: 0 | W50: 92718.59607 | X50: 1 | Y50: 0 | Z50: 0 | AA50: 0 | AB50: 0 | AC50: 0 | AD50: 0 | AE50: 0 | AF50: 0 | AG50: 0 | AH50: 0 | AI50: 0 | AJ50: 0 | AK50: 0 | AL50: 0 | AM50: 0 | AN50: 0 | AO50: 0 | AP50: 0 | AQ50: 0 | AR50: 0 | AS50: 0 | AT50: 0 | AU50: 0 | AV50: 0 | AW50: 0 | AX50: 0
A51: WeekendPD&PMLD | B51: =pd7final -> 0 | C51: 0 | D51: 0 | E51: 0 | F51: 0 | G51: 0 | H51: 0 | I51: 0 | J51: 0 | K51: 0 | L51: 0 | M51: 0 | N51: 0 | O51: 0 | P51: 0 | Q51: 109866.9718 | R51: 1 | S51: 0 | T51: 0 | U51: 0 | V51: 0 | W51: 0 | X51: 0 | Y51: 0 | Z51: 0 | AA51: 0 | AB51: 0 | AC51: 0 | AD51: 0 | AE51: 0 | AF51: 0 | AG51: 0 | AH51: 0 | AI51: 0 | AJ51: 0 | AK51: 0 | AL51: 0 | AM51: 0 | AN51: 0 | AO51: 0 | AP51: 0 | AQ51: 0 | AR51: 0 | AS51: 0 | AT51: 0 | AU51: 0 | AV51: 0 | AW51: 0 | AX51: 0
A52: integrity | B52: =integrity -> ERROR | C52: OK | D52: =IF(C52="OK",0,1) -> 0 | E52: OK | F52: =IF(E52="OK",0,1) -> 0 | G52: OK | H52: =IF(G52="OK",0,1) -> 0 | I52: OK | J52: =IF(I52="OK",0,1) -> 0 | K52: OK | L52: =IF(K52="OK",0,1) -> 0 | M52: OK | N52: =IF(M52="OK",0,1) -> 0 | O52: OK | P52: =IF(O52="OK",0,1) -> 0 | Q52: OK | R52: =IF(Q52="OK",0,1) -> 0 | S52: OK | T52: =IF(S52="OK",0,1) -> 0 | U52: OK | V52: =IF(U52="OK",0,1) -> 0 | W52: OK | X52: =IF(W52="OK",0,1) -> 0 | Y52: OK | Z52: =IF(Y52="OK",0,1) -> 0 | AA52: OK | AB52: =IF(AA52="OK",0,1) -> 0 | AC52: OK | AD52: =IF(AC52="OK",0,1) -> 0 | AE52: OK | AF52: =IF(AE52="OK",0,1) -> 0 | AG52: OK | AH52: =IF(AG52="OK",0,1) -> 0 | AI52: OK | AJ52: =IF(AI52="OK",0,1) -> 0 | AK52: OK | AL52: =IF(AK52="OK",0,1) -> 0 | AM52: OK | AN52: =IF(AM52="OK",0,1) -> 0 | AO52: OK | AP52: =IF(AO52="OK",0,1) -> 0 | AQ52: OK | AR52: =IF(AQ52="OK",0,1) -> 0 | AS52: OK | AT52: =IF(AS52="OK",0,1) -> 0 | AU52: OK | AV52: =IF(AU52="OK",0,1) -> 0 | AW52: OK | AX52: =IF(AW52="OK",0,1) -> 0
A53: nurseryfte | B53: =nurseryfte -> 0 | C53: 0 | D53: 0 | E53: 0 | F53: 0 | G53: 0 | H53: 0 | I53: 0 | J53: 0 | K53: 0 | L53: 0 | M53: 0 | N53: 0 | O53: 0 | P53: 0 | Q53: 0 | R53: 0 | S53: 0 | T53: 0 | U53: 0 | V53: 0 | W53: 0 | X53: 0 | Y53: 0 | Z53: 0 | AA53: 6 | AB53: 0 | AC53: 10 | AD53: 0 | AE53: 10 | AF53: 0 | AG53: 8 | AH53: 0 | AI53: 15 | AJ53: 0 | AK53: 6 | AL53: 0 | AM53: 12 | AN53: 0 | AO53: 5 | AP53: 0 | AQ53: 12 | AR53: 0 | AS53: 6 | AT53: 0 | AU53: 0 | AV53: 0 | AW53: 0 | AX53: 0
A54: nurserycash | B54: =nurserycash -> 0 | C54: 0 | D54: 0 | E54: 0 | F54: 0 | G54: 0 | H54: 0 | I54: 0 | J54: 0 | K54: 0 | L54: 0 | M54: 0 | N54: 0 | O54: 0 | P54: 0 | Q54: 0 | R54: 0 | S54: 0 | T54: 0 | U54: 0 | V54: 0 | W54: 0 | X54: 0 | Y54: 0 | Z54: 0 | AA54: 119810 | AB54: 1 | AC54: 219243 | AD54: 1 | AE54: 219243 | AF54: 1 | AG54: 140188 | AH54: 1 | AI54: 270187 | AJ54: 1 | AK54: 119810 | AL54: 1 | AM54: 239621 | AN54: 1 | AO54: 109622 | AP54: 1 | AQ54: 239621 | AR54: 1 | AS54: 119810 | AT54: 1 | AU54: 0 | AV54: 0 | AW54: 0 | AX54: 0
